{"text_format":"3","workbook":"xlsx","n_sheets":6,"sheets":["Международные","Российские","Республиканские","Региональные","Муниципальные","ИТОГ"],"not_rendered":{"defined_names":6},"read":"whole","date_system":"1900"}

{"sheet":"Международные","index":0,"n_rows":219,"n_cols":8,"rows_kept":219,"merged":[[0,0,0,7],[3,0,4,0],[3,1,4,1],[3,7,4,7],[6,0,7,0],[6,1,7,1],[9,0,10,0],[9,1,10,1],[9,7,10,7],[12,0,17,0],[12,1,17,1],[12,7,17,7],[18,0,20,0],[18,1,20,1],[18,7,20,7],[21,0,24,0],[21,1,24,1],[21,7,24,7],[25,0,28,0],[25,1,28,1],[25,7,28,7],[30,0,34,0],[30,1,34,1],[30,7,34,7],[36,0,58,0],[36,1,58,1],[36,7,58,7],[59,0,89,0],[59,1,89,1],[59,7,89,7],[90,0,92,0],[90,1,92,1],[93,0,94,0],[93,1,94,1],[95,0,97,0],[95,1,97,1],[95,7,97,7],[99,0,109,0],[99,1,109,1],[99,7,109,7],[110,0,111,0],[110,1,111,1],[110,7,111,7],[112,0,115,0],[112,1,115,1],[112,7,115,7],[116,0,125,0],[116,1,125,1],[116,7,125,7],[126,0,127,0],[126,1,127,1],[126,7,127,7],[128,0,134,0],[128,1,134,1],[128,7,134,7],[135,0,151,0],[135,1,151,1],[154,0,155,0],[154,1,155,1],[154,7,155,7],[157,0,159,0],[157,1,159,1],[157,7,159,7],[162,0,173,0],[162,1,173,1],[162,7,173,7],[174,0,177,0],[174,1,177,1],[174,7,177,7],[179,0,186,0],[179,1,186,1],[179,7,186,7]]}
["ИТОГИ\nучастия учащихся Детской школы искусств №7 в международных конкурсах                                                                                                         за 2017-2018 учебный год\n"]
["Дата","Уровень и название конкурса","Ф.И.О. учащегося","Кол-во учащихся","Номинация, возрастная группа","Ф.И.О. преподавателя","Достижение","Организатор конкурса"]
["2017-05-30","Международный конкурс \"Великая отчественная война\"","Муллагалиева Аделина",1,null,"Кольцова Елена Сергеевна","Диплом лауреата   I степени","Журнал \"Педагог\" СМИ ЭЛ № ФС 77 - 65297"]
["05.06.2017","Международный фестиваль детского и юношеского конкурса \"Зажигаем звёзды!\"","Шагиева Полина",1,"Вокальное исполнение","Колтунова Татьяна Николаевна","Диплом лауреата III степени"]
[null,null,"Вокальный дуэт в составе:                         Шагиева Полина Малыгина Мария",2,"Вокальный ансамбль","Колтунова Татьяна Николаевна","Диплом I степени"]
["16-19 июля 2017","Финал международного проекта «Гранд-премия 2016-2017»,            г. Анапа","Яфясова Азалия",1,"Вокальное исполнение","Хоини Рима Илдусовна","Диплом лауреата II степени","Творческо-продюсерский центр \"Берега надежды\"                              г. Екатеринбург"]
["2017-08-30","Международный творческий конкурс \"Конкурсофф\"","Шакиров Ринат",1,"фортепиано","Кольцова Елена Сергеевна","Диплом лауреата II степени","Международное СМИ \"Росмедаль\""]
[null,null,"Муртазин Булат",1,"фортепиано","Кольцова Елена Сергеевна","Диплом лауреата II степени","Международное СМИ \"Росмедаль\""]
["2017-08-31","Международный творческий конкурс \"Конкурсофф\"","Фортепианный дуэт в составе:                        Розова Арина Мадифурова Алина",2,"фортепиано","Кольцова Елена Сергеевна","Диплом лауреата   I степени","Международное СМИ \"Росмедаль\""]
["2017-09-26","XII Международный вокальный фестиваль - конкурс «Золотой голос России», г. Москва","Имамова Эмилия",1,"Вокальное исполнение","Колтунова Татьяна Николаевна","Диплом III степени","Продюссерский центр ЭКТВ, Школа-студия \"Останкино\""]
[null,null,"Петухова Милана",1,"Вокальное исполнение","Колтунова Татьяна Николаевна","Диплом III степени"]
["2017-10-06","Международная олимпиада по музыкальной литературе, посвящённая 230-летию А.А. Алябьева ","Паскичева София",1,"Музыкальная литература","Еливанова Ольга Владимировна","Диплом лауреата II степени","Центр ДМ \"ИнтеллектУм\""]
["2017-10-16","Международная олимпиада по музыкальной литературе, Карнавал животных К. Сен-Санс","Воркунов Сергей",1,"Музыкальная литература","Еливанова Ольга Владимировна","Диплом лауреата   I степени","Центр ДМ \"ИнтеллектУм\""]
[null,null,"Нечитайло Егор",1,"Музыкальная литература","Еливанова Ольга Владимировна","Диплом лауреата   I степени"]
[null,null,"Решетова Ирина",1,"Музыкальная литература","Еливанова Ольга Владимировна","Диплом лауреата   I степени"]
[null,null,"Серкес Анастасия",1,"Музыкальная литература","Еливанова Ольга Владимировна","Диплом лауреата   I степени"]
[null,null,"Нигматуллин Денис",1,"Музыкальная литература","Еливанова Ольга Владимировна","Диплом лауреата II степени"]
[null,null,"Корнилов Кирилл",1,"Музыкальная литература","Еливанова Ольга Владимировна","Диплом лауреата III степени"]
["28-31.10.2017","VII Международный конкурс \"Крылатый барс\" г. Казань","Имамова Эмилия",1,"Вокальное исполнение","Колтунова Татьяна Николаевна","Диплом лауреата   I степени","Международный проект творческого и личностного развития \"Дети XXI века\" "]
[null,null,"Петухова Милана",1,"Вокальное исполнение","Колтунова Татьяна Николаевна","Диплом лауреата   I степени"]
[null,null,"Шагиева Полина",1,"Вокальное исполнение","Колтунова Татьяна Николаевна","Диплом лауреата II степени"]
["2017-10-30","XXI Международный творческий фестиваль - конкурс «Слияние культур», г. Казань","Имамова Эмилия",1,"Вокальное исполнение","Колтунова Татьяна Николаевна","Диплом лауреата   I степени","\nТворческое Объединение «Салют Талантов»"]
[null,null,"Петухова Милана",1,"Вокальное исполнение","Колтунова Татьяна Николаевна","Диплом лауреата   I степени"]
[null,null,"Петухова Милана",1,"Вокальное исполнение","Колтунова Татьяна Николаевна","Диплом \"Самый юный участник\""]
[null,null,"Петухова Милана",1,"Вокальное исполнение","Колтунова Татьяна Николаевна","Диплом \"Самый артистичный участник\""]
["2017-11-01","Международный фестиваль-конкурс \"Казань Лучезарная\"                    г. Казань","Ансамбль \"Вдохновение\" в составе:                                    1.  Бадретдинова Рената\n2.  Гараева Александра\n3.  Нугуманова Алия\n4.  Нугуманова Эльвина\n5.  Муллахметова Эльвина\n6.  Петрова Вероника\n7.  Талипова Арина\n8.  Сабирзянова Сабина\n9.  Усанова Дарья\n10. Шагалина Евгения\n11. Мошкова Виктория\n",11,"Хореография","Реддер Галина Леонидовна концертмейстер Савастьянова Наталья Николаевна","Диплом лауреата II степени","Международный благотворительный фонд \"Мир на ладони\""]
[null,null,"Ансамбль \"Вдохновение\" в составе:                                    1.  Аменова Азалия\n2.  Ложкина Женя\n3.  Мухаметханова Эльвира\n4.  Нам Алина\n5.  Прокофьева Аня\n6.  Кондратьева Александра\n7.  Зарипова Зухра\n8.  Ильина Лиза\n9.  Криськова Яна\n10. Кулыгина Полина\n11. Хаматдинова Диана\n\n",11,"Хореография","Реддер Галина Леонидовна концертмейстер Савастьянова Наталья Николаевна","Диплом лауреата II степени"]
[null,null,"Ансамбль \"Вдохновение\" в составе:                                    1.  Аменова Азалия\n2.  Ложкина Женя\n3.  Мухаметханова Эльвира\n4.  Нам Алина\n5.  Прокофьева Аня\n6.  Кондратьева Александра\n7.  Зарипова Зухра\n8.  Ильина Лиза\n9.  Кулыгина Полина\n10. Хаматдинова Диана\n\n\n",10,"Хореография","Петрова Лидия Ивановна концертмейстер Алексеева Наиля Азатовна","Диплом лауреата II степени"]
[null,null,"Ансамбль \"Вдохновение\" в составе:                                                1.  Макарова Елена\n2.  Прошунина Валерия\n3.  Прошунина Александра\n4.  Юсупова Ильфира\n",4,"Хореография","Реддер Галина Леонидовна концертмейстер Савастьянова Наталья Николаевна","Диплом лауреата III степени"]
["2-05.11.2017","Международный фестиваль-конкурс \"Казанская Радуга\" г. Казань","Петухова Милана",1,"Вокальное исполнение","Колтунова Татьяна Николаевна","Диплом лауреата   I степени"]
["2017-11-04","III Международный конкурс \"Крылья талантов\" г. Набережные Челны","Кобахидзе Медея",1,"Вокальное исполнение","Колтунова Татьяна Николаевна","Диплом                Гран -При","ООО \"Центр поддержки детского торчества \"Страна детства\""]
[null,null,"Имамова Эмилия",1,"Вокальное исполнение","Колтунова Татьяна Николаевна","Диплом лауреата   I степени"]
[null,null,"Несветаева Ольга",1,"Вокальное исполнение","Колтунова Татьяна Николаевна","Диплом лауреата   I степени"]
[null,null,"Ногуманов Игорь",1,"Вокальное исполнение","Колтунова Татьяна Николаевна","Диплом лауреата   I степени"]
[null,null,"Шагиева Полина",1,"Вокальное исполнение","Колтунова Татьяна Николаевна","Диплом лауреата II степени"]
["2017-11-12","I Международный конкурс - фестиваль \"Российский звездопад\" г. Набережные Челны","Несветаева Ольга",1,"Вокальное исполнение","Колтунова Татьяна Николаевна","Диплом лауреата   I степени","ООО \"Калейдоскоп ФесТур\" "]
["2017-11-26","III Международный фестиваль-конкурс детского, юношеского и взрослого творчества \"Арт-Олимп\"","Ансамбль \"Вдохновение\" в составе:                                    1.  Бадретдинова Рената\n2.  Нугуманова Алия\n3.  Нугуманова Эльвина\n4.  Муллахметова Эльвина\n5.  Петрова Вероника\n6.  Талипова Арина\n7.  Сабирзянова Сабина\n8.  Усанова Дарья\n9. Шагалина Евгения\n10. Мошкова Виктория\n\n",10,"Хореография","Реддер Галина Леонидовна концертмейстер Савастьянова Наталья Николаевна","Диплом лауреата   I степени","Творческий центр \"Детская филармония\""]
[null,null,"Ансамбль \"Вдохновение\" в составе:                                    1.  Нугуманова Алия\n2.  Нугуманова Эльвина\n3.  Муллахметова Эльвина\n4.  Петрова Вероника\n5.  Талипова Арина\n6.  Сабирзянова Сабина\n7.  Усанова Дарья\n8.  Шагалина Евгения\n\n\n",8,"Хореография","Петрова Лидия Ивановна концертмейстер Алексеева Наиля Азатовна","Диплом лауреата   I степени"]
[null,null,"Несветаева Ольга",1,"Вокальное исполнение","Колтунова Татьяна Николаевна","Диплом лауреата   I степени"]
[null,null,"Вокальный дуэт в составе:                            Имамова Эмилия Куркина Елизавента",1,"Вокальное исполнение","Колтунова Татьяна Николаевна","Диплом лауреата   I степени"]
[null,null,"Кобахидзе Медея",1,"Вокальное исполнение","Колтунова Татьяна Николаевна","Диплом лауреата   I степени"]
[null,null,"Куркина Елизавета",1,"Вокальное исполнение","Колтунова Татьяна Николаевна","Диплом лауреата II степени"]
[null,null,"Ансамбль \"Вдохновение\" в составе:                                    1. Биктимирова Алина\n2. Макарова Лена\n3. Мошкова Яна\n4. Прокопьева Злата\n5. Юсупова Ильфира\n\n",5,"Хореография","Петрова Лидия Ивановна концертмейстер Алексеева Наиля Азатовна","Диплом лауреата II степени"]
[null,null,"Ансамбль \"Вдохновение\" в составе:                                    1. Биктимирова Алина\n2. Макарова Лена\n3. Мошкова Яна\n4. Прокопьева Злата\n5. Юсупова Ильфира\n6. Прошунина Саша\n7. Кудряшова Арина\n\n\n",7,"Хореография","Петрова Лидия Ивановна концертмейстер Алексеева Наиля Азатовна","Диплом лауреата II степени"]
[null,null,"Ансамбль \"Вдохновение\" в составе:                                    1.  Белоногова Мирослава\n2.  Гатина Диля\n3.  Гареева София\n4.  Козлова Анастасия\n5.  Липатова Диана\n6.  Логинова Александра\n7.  Махмудова Алина \n8.  Рыбюк Екатерина\n9.  Ульданова Сабина\n10. Шарафисламова Софья\n\n\n\n",10,"Хореография","Панкова Наталья Владимировна концертмейстер Латыпова Анастасия Тагирзяновна","Диплом лауреата II степени"]
[null,null,"Ансамбль \"Вдохновение\" в составе:                                    1.  Белоногова Мирослава\n2.  Гатина Диля\n3.  Гареева София\n4.  Козлова Анастасия\n5.  Липатова Диана\n6.  Логинова Александра\n7.  Махмудова Алина \n8.  Рыбюк Екатерина\n9.  Ульданова Сабина\n10. Шарафисламова Софья\n\n\n\n",10,"Хореография","Панкова Наталья Владимировна концертмейстер Латыпова Анастасия Тагирзяновна","Диплом лауреата II степени"]
[null,null,"Ансамбль \"Вдохновение\" в составе:                                    1.  Азаревич Кристина\n2.  Баталова Алексия\n3.  Галимова Ясмина\n4.  Галина Ралина\n5.  Краснова Милана\n6.  Курбанова Малика\n7.  Лопаева Вероника\n8.  Мухутдинова Амина\n9.  Сабирова Алия\n10. Тарабухина Румия\n11. Шангараева Зарина\n12. Язитова Амина\n\n\n\n\n",12,"Хореография","Панкова Наталья Владимировна концертмейстер Латыпова Анастасия Тагирзяновна","Диплом лауреата II степени"]
[null,null,"Имамова Эмилия",1,"Вокальное исполнение","Колтунова Татьяна Николаевна","Диплом лауреата II степени"]
[null,null,"Шагиева Полина",1,"Вокальное исполнение","Колтунова Татьяна Николаевна","Диплом лауреата II степени"]
[null,null,"Николаева Екатерина",1,"Искусство Аккомпанемента","Помазкина Людмила Лукьяновна иллюстратор          Галина Резеда Радиковна","Диплом лауреата II степени"]
[null,null,"Петухова Милана",1,"Вокальное исполнение","Колтунова Татьяна Николаевна","Диплом лауреата II степени"]
[null,null,"Ансамбль \"Вдохновение\" в составе:                                    1.  Ахметжанова Алина\n2. Голубкова Лиана\n3.  Домрачева Ксения\n4.  Зинатуллина Карина\n5.  Куленко Варвара\n6.  Криськова Лина \n7.  Маликова Аделя\n8.  Нурдинова Сабина\n9.  Позднякова Сабина\n10. Попова Дарья\n11. Нуриахметова Гулия\n\n\n",11,"Хореография","Реддер Галина Леонидовна концертмейстер Савастьянова Наталья Николаевна","Диплом лауреата III степени"]
[null,null,"Вокальный дуэт в составе:                             Шагиева Полина Малыгина Мария",2,"Вокальное исполнение","Колтунова Татьяна Николаевна","Диплом лауреата III степени"]
[null,null,"Ногуманов Игорь",1,"Вокальное исполнение","Колтунова Татьяна Николаевна","Диплом лауреата III степени"]
[null,null,"Ансамбль \"Вдохновение\" в составе:                                    1.  Биктимирова Альмира\n2.  Перминова Снежана\n3.  Равзетдинова Разиля\n4.  Соснина Ольга\n5.  Толмачева Анастасия\n6.  Халиуллина Азалия\n7.  Шагиева Полина\n\n\n\n",7,"Хореография","Реддер Галина Леонидовна концертмейстер Савастьянова Наталья Николаевна","Диплом            дипломанта"]
[null,null,"Усанова Дарья\n\n",1,"Хореография","Панкова Наталья Владимировна концертмейстер Латыпова Анастасия Тагирзяновна","Диплом \"За сохранение культурных традиций\""]
[null,null,"Салихова Эльвина",1,"Вокальное исполнение","Колтунова Татьяна Николаевна","Диплом I степени"]
[null,null,"Николаева Екатерина",1,"Инструментальное исполнение","Луговая Татьяна Геннадьевна","Диплом II степени"]
[null,null,"Ерошкина Ангелина",1,"Искусство Аккомпанемента","Помазкина Людмила Лукьяновна иллюстратор Галина Резеда Радиковна","Диплом III степени"]
["7-10.12.2017","Международный конкурс-фестиваль \"Когда мы вместе\"","Кобахидзе Медея",1,"Вокальное исполнение","Колтунова Татьяна Николаевна","Диплом                Гран -При","Фонд поддержки и развития детского творчества \"Планета талантов\""]
[null,null,"Несветаева Ольга",1,"Вокальное исполнение","Колтунова Татьяна Николаевна","Диплом лауреата   I степени"]
[null,null,"Вокальный дуэт в составе:                      Имамова Эмилия Куркина Елизавета",2,"Вокальное исполнение","Колтунова Татьяна Николаевна","Диплом лауреата   I степени"]
[null,null,"Вокальный ансамбль \"Колибри\" в составе:            1. Несветаева Ольга                         2. Куркина Елизавета 3.Имамова Эмилия 4.Ахметшина Диана 5.Малыгина Мария  6.Шагиева Полина 7.Ризатдинов Тимур            8.Черных Данил            9.Ногуманов Игорь 10.Жданов Салават 11.Равзетдинов Камиль",11,"Вокальное исполнение","Колтунова Татьяна Николаевна","Диплом лауреата   I степени"]
[null,null,"Хореографический ансамбль \"Вдохновение\" в составе:                                 1.  Анкудинова Анна\n2.  Докучаева Вероника\n3.  Карсакова Полина\n4.  Ковальчук Любовь\n5.  Мусина Диана\n6.  Ситдикова Аделина\n7.  Салмиянова Ксения\n8.  Таранец Виктория\n9.  Шматыгина Ксения\n",9,"Хореография","Панкова Наталья Владимировна концертмейстер Латыпова Анастасия Тагирзяновна","Диплом лауреата   I степени"]
[null,null,"Яфясова Азалия",1,"Вокальное исполнение","Хоини Рима Илдусовна","Диплом лауреата   I степени"]
[null,null,"Имамов Самат",1,"Вокальное исполнение","Колтунова Татьяна Николаевна","Диплом лауреата   I степени"]
[null,null,"Куркина Елизавета",1,"Вокальное исполнение","Колтунова Татьяна Николаевна","Диплом лауреата II степени"]
[null,null,"Ахметшина Диана",1,"Вокальное исполнение","Колтунова Татьяна Николаевна","Диплом лауреата II степени"]
[null,null,"Рафикова Диляра",1,"фортепиано","Садыкова Татьяна Владимировна","Диплом лауреата II степени"]
[null,null,"Потанина Дарья",1,"фортепиано","Садыкова Татьяна Владимировна","Диплом лауреата II степени"]
[null,null,"Феофанова Алина",1,"Академическое пение","Макушина Ольга Ярослововна концертмейстер Рамиева Рамзия Хасановна","Диплом лауреата II степени"]
[null,null,"Вокальный дуэт в составе:                       Шагиева Полина Малыгина Мария",2,"Вокальное исполнение","Колтунова Татьяна Николаевна","Диплом лауреата II степени"]
[null,null,"Хореографический ансамбль \"Вдохновение\" в составе:                                 1.  Бадретдинова Рената\n2.  Нугуманова Алия\n3.  Нугуманова Эльвина\n4.  Муллахметова Эльвина\n5.  Петрова Вероника\n6.  Талипова Арина\n7.  Сабирзянова Сабина\n8.  Усанова Дарья\n9.  Шагалина Евгения\n10. Мошкова Виктория\n\n",10,"Хореография","Реддер Галина Леонидовна концертмейстер Савастьянова Наталья Николаевна","Диплом лауреата II степени"]
[null,null,"Хореографический ансамбль \"Вдохновение\" в составе:                                 1.  Аменова Азалия\n2.  Мухаметханова Эльвира\n3.  Нам Алина\n4.  Прокофьева Аня\n5.  Кондратьева Александра\n6.  Зарипова Зухра\n7.  Ильина Лиза\n8.  Криськова Яна\n9.  Кулыгина Полина\n10. Хаматдинова Диана\n\n\n",10,"Хореография","Реддер Галина Леонидовна концертмейстер Савастьянова Наталья Николаевна","Диплом лауреата II степени"]
[null,null,"Хореографический ансамбль \"Вдохновение\" в составе:                                 1.  Аменова Азалия\n2.  Ложкина Женя\n3.  Мухаметханова Эльвира\n4.  Нам Алина\n5.  Прокофьева Аня\n6.  Кондратьева Александра\n7.  Зарипова Зухра\n8.  Ильина Лиза\n9.  Кулыгина Полина\n10. Хаматдинова Диана\n\n\n\n",10,"Хореография","Петрова Лидия Ивановна концертмейстер Алексеева Наиля Азатовна","Диплом лауреата II степени"]
[null,null,"Хореографический ансамбль \"Вдохновение\" в составе:                                 1. Биктимирова Алина\n2. Макарова Лена\n3. Мошкова Яна\n4. Прокопьева Злата\n5. Юсупова Ильфира\n\n\n\n\n",5,"Хореография","Петрова Лидия Ивановна концертмейстер Алексеева Наиля Азатовна","Диплом лауреата II степени"]
[null,null,"Фортепианный дуэт в составе:                        Потанина Дарья Потанина Надежда",1,"фортепиано","Садыкова Татьяна Владимировна","Диплом лауреата III степени"]
[null,null,"Шагиева Полина",1,"Вокальное исполнение","Колтунова Татьяна Николаевна","Диплом лауреата III степени"]
[null,null,"Максимов Иван",1,"Фортепиано","Луговая Татьяна Геннадьевна","Диплом лауреата III степени"]
[null,null,"Хореографический ансамбль \"Вдохновение\" в составе:                                 1.  Белоногова Мирослава\n2.  Гатина Диля\n3.  Гареева София\n4.  Козлова Анастасия\n5.  Липатова Диана\n6.  Логинова Александра\n7.  Махмудова Алина \n8.  Рыбюк Екатерина\n9.  Ульданова Сабина\n10. Шарафисламова Софья\n\n\n\n\n\n",10,"Хореография","Панкова Наталья Владимировна концертмейстер Латыпова Анастасия Тагирзяновна","Диплом лауреата III степени"]
[null,null,"Хореографический ансамбль \"Вдохновение\" в составе:                                 1.  Азаревич Кристина\n2.  Баталова Алексия\n3.  Галимова Ясмина\n4.  Галина Ралина\n5.  Краснова Милана\n6.  Курбанова Малика\n7.  Лопаева Вероника\n8.  Мухутдинова Амина\n9.  Сабирова Алия\n10. Тарабухина Румия\n11. Шангараева Зарина\n12. Язитова Амина\n\n\n\n\n\n\n",12,"Хореография","Панкова Наталья Владимировна концертмейстер Латыпова Анастасия Тагирзяновна","Диплом лауреата III степени"]
[null,null,"Хореографический ансамбль \"Вдохновение\" в составе:                                 1. Биктимирова Алина\n2. Макарова Лена\n3. Мошкова Яна\n4. Прокопьева Злата\n5. Юсупова Ильфира\n6. Прошунина Саша\n7. Кудряшова Арина\n\n\n\n\n\n\n\n",7,"Хореография","Панкова Наталья Владимировна концертмейстер Латыпова Анастасия Тагирзяновна","Диплом лауреата III степени"]
[null,null,"Грчёв Никита",1,"фортепиано","Мухаметшина Венера Робесовна","Диплом лауреата III степени"]
[null,null,"Кузнецова Кристина",1,"Эстрадный вокал","Макушина Ольга Ярослововна","Диплом лауреата III степени"]
[null,null,"Фортепианный ансамбль в составе:                   Ерошкина Ангелина Помазкина Л.Л.",2,"фортепиано","Помазкина Людмила Лукьяновна","Диплом лауреата III степени"]
[null,null,"Малыгина Мария",1,"Эстрадный вокал","Колтунова Татьяна Николаевна","Диплом I степени"]
[null,null,"Ногуманов Игорь",1,"Эстрадный вокал","Колтунова Татьяна Николаевна","Диплом I степени"]
[null,null,"Тайманова Анастасия",1,"Эстрадный вокал","Будневич Тамара Константиновна","Диплом I степени"]
[null,null,"Чупина Анжелика",1,"Эстрадный вокал","Будневич Тамара Константиновна","Диплом I степени"]
[null,null,"Хореографический ансамбль \"Вдохновение\" в составе:                                 1.  Нугуманова Алия\n2.  Нугуманова Эльвина\n3.  Муллахметова Эльвина\n4.  Петрова Вероника\n5.  Талипова Арина\n6.  Сабирзянова Сабина\n7.  Усанова Дарья\n8.  Шагалина Евгения\n\n\n\n\n\n\n\n\n\n",8,"Хореография","Петрова Лидия Ивановна концертмейстер Алексеева Наиля Азатовна","Диплом I степени"]
["2017-11-29","II Международный конкурс \"Вдохновение. Осень-2017\" г. Санкт-Петербург","Юсупова Аделина",1,"Академическое пение","Знатина Ульяна Юрьевна концертмейстер Фролов Владислав Александрович","Диплом лауреата II степени"]
[null,null,"Зигангирова Алина",1,"Академическое пение","Знатина Ульяна Юрьевна концертмейстер Фролов Владислав Александрович","Диплом лауреата III степени"]
[null,null,"Амитов Амин",1,"Академическое пение","Знатина Ульяна Юрьевна концертмейстер Фролов Владислав Александрович","Диплом I степени"]
["2017-12-19","Международный проект \"Videouroki.net\"","Юсупова Карина",1,"Олимпиада по музыке","Лотфуллина Лилия Рафисовна","Диплом лауреата   I степени"]
[null,null,"Ялалова Валерия",1,"Олимпиада по музыке","Лотфуллина Лилия Рафисовна","Диплом лауреата   I степени"]
["декабрь 2017","Международная олимпиада по сольфеджио \"Vivo solfeggio\"","Мандзюк Вероника",1,"Олимпиада по сольфеджио","Еливанова Ольга Владимировна","Диплом лауреата II степени","ГАОУ ДПО \"Институт развития образования\""]
[null,null,"Жук Алексей",1,"Олимпиада по сольфеджио","Еливанова Ольга Владимировна","Диплом лауреата II степени"]
[null,null,"Паскичева София",1,"Олимпиада по сольфеджио","Еливанова Ольга Владимировна","Диплом лауреата II степени"]
["2018-01-31","Международный конкурс \"Планета талантов\"","Вокальный ансамбль \"Колибри\" в составе:            1. Несветаева Ольга                         2. Куркина Елизавета 3.Имамова Эмилия 4.Ахметшина Диана 5.Малыгина Мария  6.Шагиева Полина 7.Ризатдинов Тимур            8.Черных Данил            9.Ногуманов Игорь 10.Жданов Салават 11.Равзетдинов Камиль",11,"Эстрадное пение. Ансамбли","Колтунова Татьяна Николаевна","Диплом лауреата   I степени","Фонд развития детского творчества \"Планета талантов\""]
["2018-02-01","Международный конкурс \"Vivat, Kazan\"","Вокальный квартет \"Колибри\" в составе:                        Куркина Елизавета Имамова Эмилия Несветаева Ольга Ахметшина Диана",4,"Эстрадный вокальный ансамбль","Колтунова Татьяна Николаевна","Диплом                Гран -При","АНО ЦКИ \"Адмиралтейский\""]
[null,null,"Вокальный ансамбль \"Колибри\" в составе:            1. Несветаева Ольга                         2. Куркина Елизавета 3.Имамова Эмилия 4.Ахметшина Диана 5.Малыгина Мария  6.Шагиева Полина 7.Ризатдинов Тимур            8.Черных Данил            9.Ногуманов Игорь 10.Жданов Салават 11.Равзетдинов Камиль",11,"Эстрадный вокальный ансамбль","Колтунова Татьяна Николаевна","Диплом лауреата   I степени"]
[null,null,"Вокальный дуэт в составе:                                Куркина Елизавета Имамова Эмилия",2,"Эстрадный вокал 8-10 лет","Колтунова Татьяна Николаевна","Диплом лауреата   I степени"]
[null,null,"Несветаева Ольга",1,"Эстрадный вокал 11-13 лет","Колтунова Татьяна Николаевна","Диплом лауреата   I степени"]
[null,null,"Куркина Елизавета",1,"Эстрадный вокал 8-10 лет","Колтунова Татьяна Николаевна","Диплом лауреата   I степени"]
[null,null,"Ахметшина Диана",1,"Эстрадный вокал 14-16 лет","Колтунова Татьяна Николаевна","Диплом лауреата II степени"]
[null,null,"Имамова Эмилия",1,"Эстрадный вокал 8-10 лет","Колтунова Татьяна Николаевна","Диплом лауреата II степени"]
[null,null,"Черных Данил",1,"Эстрадный вокал 14-16 лет","Колтунова Татьяна Николаевна","Диплом лауреата III степени"]
[null,null,"Салихова Эльвина",1,"Эстрадный вокал 5-7 лет","Колтунова Татьяна Николаевна","Диплом лауреата III степени"]
[null,null,"Равзетдинов Камиль",1,"Эстрадный вокал 11-13 лет","Колтунова Татьяна Николаевна","Диплом I степени"]
[null,null,"Вокальный дуэт в составе:                         Салихова Эльвина Имамов Самат",2,"Эстрадный вокал 5-7 лет","Колтунова Татьяна Николаевна","Диплом II степени"]
["2018-02-01","Международный конкурс-фестиваль \"Восточная сказка\"","Шагиева Полина",1,"Эстрадный вокал 9-10 лет","Колтунова Татьяна Николаевна","Диплом II степени","Творческое объединение Триумф"]
[null,null,"Петухова Милана",1,"Эстрадный вокал 5-7 лет","Колтунова Татьяна Николаевна","Диплом II степени"]
["10-11.02.2018","Международный фестиваль-конкурс детского и юношеского творчества \"Жемчужины Татарстана\",                        г. Нижнекамск","Вокальный дуэт в составе:                              Шагиева Полина Малыгина Мария",2,"Эстрадный вокал. Дуэты","Колтунова Татьяна Николаевна","Диплом лауреата   I степени","Республиканский методический центр культуры и искусства"]
[null,null,"Кобахидзе Медея",1,"Эстрадный вокал. Соло","Колтунова Татьяна Николаевна","Диплом лауреата   I степени"]
[null,null,"Шагиева Полина",1,"Эстрадный вокал. Соло. Национальный вокал","Колтунова Татьяна Николаевна","Диплом лауреата   I степени"]
[null,null,"Шагиева Полина",1,"Эстрадный вокал. Соло","Колтунова Татьяна Николаевна","Диплом лауреата II степени"]
["2018-02-25","Международный проект \"Инфоурок\"","Богомолова Любовь",1,"Олимпиада по музыке","Замилова Луйиза Мегдятовна","Диплом лауреата   I степени","Проект \"Инфоурок\""]
[null,null,"Жиркова Полина",1,"Олимпиада по музыке","Суходольская Рузалия Салиховна","Диплом лауреата   I степени"]
[null,null,"Зубова Дарья",1,"Олимпиада по музыке","Суходольская Рузалия Салиховна","Диплом лауреата   I степени"]
[null,null,"Жук Алексей",1,"Олимпиада по музыке","Хаметшина Ольга Викторовна","Диплом лауреата   I степени"]
[null,null,"Иделгариева Елизавета",1,"Олимпиада по музыке","Хаметшина Ольга Викторовна","Диплом лауреата   I степени"]
[null,null,"Исакова Анастасия",1,"Олимпиада по музыке","Хаметшина Ольга Викторовна","Диплом лауреата   I степени"]
[null,null,"Махянова Ландыш",1,"Олимпиада по музыке","Хаметшина Ольга Викторовна","Диплом лауреата   I степени"]
[null,null,"Рамазанова Дарина",1,"Олимпиада по музыке","Хаметшина Ольга Викторовна","Диплом лауреата   I степени"]
[null,null,"Гилязов Эмир",1,"Олимпиада по музыке","Хаметшина Ольга Викторовна","Диплом лауреата II степени"]
[null,null,"Каяшова Эрика",1,"Олимпиада по музыке","Хаметшина Ольга Викторовна","Диплом лауреата II степени"]
["февраль 2018","Международная вокально-хоровая ассамблея \"Canzoniere\"","Хор \"Канцона\" в составе:                           1. Файзулина Р.\n2. Богомолова Л.\n3. Калимуллин Р.\n4. Уткина К.\n5. Саламатова Е.\n6. Плотников Р.\n7. Саламатова Ю.\n8. Максимов И.\n9. Рамазанова Д.\n10. Мадифурова А.\n11. Белоглазова А.\n12. Искандарова А.\n13. Коновалова А.\n14. Мифтяхова Л.\n15. Мифтяхова Д.\n16. Николаева К.\n17. Малинина А.\n18. Розова А.\n19. Виноградова М.\n20. Колчина К.\n21. Воркунова В.\n22. Шарипова Т.\n23. Неровная В.\n24. Овчинникова А.\n25. Цветкова А.\n26. Батяева Е.\n27. Батяева Д.\n28. Исакова А.\n29. Мыльникова О.\n30. Махянова Л.\n31. Савинков В.\n32. Жиркова П.\n33. Димухаметова С.\n34. Нигматуллина Э.\n35. Басырова Э.\n36. Зайниева Э.\n",36,"Хоровое пение","Замилова Луйиза Мегдятовна концертмейстер Алиакберова Алия Ирековна","Диплом лауреата   I степени","ГАОУ ДПО \"Институт развития образования\""]
[null,null,"Хор \"Мелодия\" в составе:                                1. Абдуллаева С.\n2. Березина С.\n3. Маханькова П.\n4. Стрелкова С.\n5. Щелконогова С.\n6. Талипова Л.\n7. Каткова В.\n8. Калимуллина Р.\n9. Гарипова З.\n10. Ткаченко Л.\n11. Мурадымова А.\n12. Ветрюк В.\n13. Загидуллина Т.\n14. Ляпина Л.\n15. Закирова З.\n16. Абдуллаева С.\n17. Васильева Л.\n18. Зубова Д.\n19. Капуста В.\n20. Лукина Э.\n21. Новикова Р.\n22. Смиронова Е.\n23. Умарова К.\n24. Шайхутдинова А.\n",24,"Хоровое пение","Суходольская Рузалия Салиховна концертмейстер Латыпова Анастасия Тагирзяновна","Диплом лауреата II степени"]
["23-25.02.2018","I Международный конкурс Исполнительства и творчества \"Tatarstars\"","Ханипов Раушан",1,"Фортепиано","Гайфуллина Алла Александровна","Диплом лауреата   I степени","Фонд развития исполнительского искусства \"Сфорцандо\""]
[null,null,"Яфясова Азалия",1,"Вокальное исполнение","Хоини Рима Илдусовна","Диплом лауреата   I степени"]
[null,null,"Савельева Алиса",1,"домра","Галина Резеда Радиковна","Диплом лауреата II степени"]
[null,null,"Фортепианный дуэт в составе:                              Пузынович Аида Гайфуллина Алла Александровна",2,"фортепиано","Гайфуллина Алла Александровна","Диплом лауреата II степени"]
[null,null,"Фортепианный дуэт в составе:                                            Ерошкина Ангелина Помазкина Л.Л.",2,"фортепиано","Помазкина Людмила Лукьяновна","Диплом лауреата III степени"]
[null,null,"Неровная Кира",1,"фортепиано","Кольцова Елена Сергеевна","Диплом лауреата III степени"]
[null,null,"Муртазин Булат",1,"фортепиано","Кольцова Елена Сергеевна","Диплом лауреата III степени"]
["03-4.03.2018","Открытый телевизионный международный проект \"Таланты России\"","Хор мальчиков \"Эксклюзив\" в составе:         1. Пикушев Д.\n2. Ширеев А.\n3. Фазлыев А.\n4. Лазарев М.\n5. Астапкович И.\n6. Жигалов А.\n7. Пантелеев Н.\n8. Сагидуллин Э.\n 9. Янгиров А.\n 10. Гатауллин Т.\n11. Ханипов Р.\n14. Барыев Б.\n12. Зарифуллин А.\n13. Абдуллаев Б.\n15. Сагидуллин К.\n16. Губайдуллин Р.\n17. Лапицкий Е.\n18. Батаев Д.\n           ",18,"Хоровое пение","Тарханова Лилия Михайловна концертмейстер Андрейченко Марина Петровна","Диплом                Гран -При"]
[null,null,"Грачев Никита",2,"фортепиано","Мухаметшина Венера Робесовна","Диплом лауреата   I степени"]
[null,null,"Фортепианный дуэт в составе:                            Ерошкина Ангелина Помазкина Людмила Лукьяновна",2,"Фортепиано","Помазкина Людмила Лукьяновна","Диплом лауреата   I степени"]
[null,null,"Ансамбль \"Вдохновение\" 9 лет в составе:                                     1.  Анкудинова Анна\n2.  Докучаева Вероника\n3.  Карсакова Полина\n4.  Ковальчук Любовь\n5.  Мусина Диана\n6.  Ситдикова Аделина\n7.  Салмиянова Ксения\n8.  Таранец Виктория\n9.  Шматыгина Ксения\n                               \n        ",9,"Хореография","Панкова Наталья Владимировна концертмейстер Латыпова Анастасия Тагирзяновна","Диплом лауреата   I степени"]
[null,null,"Ансамбль \"Вдохновение\" 10-11 лет в составе:                                        1.  Нугуманова Алия\n2.  Нугуманова Эльвина\n3.  Муллахметова Эльвина\n4.  Петрова Вероника\n5.  Талипова Арина\n6.  Сабирзянова Сабина\n7.  Усанова Дарья\n8.  Шагалина Евгения\n      ",8,"Хореография","Петрова Лидия Ивановна концертмейстер Алексеева Наиля Азатовна Реддер Галина Леонидовна концертмейстер Савастьянова Наталья Николаевна","Диплом лауреата   I степени"]
[null,null,"Ансамбль \"Вдохновение\" 5 лет в составе:                                   1.  Арсланова Айсылу\n2.  Варламова Полина\n3.  Губайдуллина Ралина\n4.  Егорова Кира\n5.  Зарудна Василиса\n6.  Зиганшина Залина\n7.  Невенчанная Вика\n8.  Плаксимова Аделя\n9.  Сабитова Айсылу\n10. Смирнова Вика\n11. Хаирова Алия\n12. Ребгун Вера\n13. Хамадьярова Ралина      ",13,"Хореография","Панкова Наталья Владимировна концертмейстер Латыпова Анастасия Тагирзяновна","Диплом лауреата   I степени"]
[null,null,"Ансамбль \"Вдохновение\" 13-14 лет в составе:                                       1.  Аменова Азалия\n2.  Мухаметханова Эльвира\n3.  Нам Алина\n4.  Прокофьева Аня\n5.  Кондратьева Александра\n6.  Зарипова Зухра\n7.  Ильина Лиза\n8.  Ложкина Евгения\n9.  Кулыгина Полина\n10. Хаматдинова Диана\n         ",10,"Хореография","Петрова Лидия Ивановна концертмейстер Алексеева Наиля Азатовна Реддер Галина Леонидовна концертмейстер Савастьянова Наталья Николаевна","Диплом лауреата   I степени"]
[null,null,"Ансамбль \"Вдохновение\" в составе:                                         1.  Аменова Азалия\n2.  Мухаметханова Эльвира\n3.  Нам Алина\n4.  Прокофьева Аня\n5.  Кондратьева Александра\n6.  Зарипова Зухра\n7.  Ильина Лиза\n8.  Криськова Яна\n9.  Кулыгина Полина\n10. Хаматдинова Диана\n       ",10,"Хореография","Петрова Лидия Ивановна концертмейстер Алексеева Наиля Азатовна ","Диплом лауреата   I степени"]
[null,null,"Вилданова Амалия",1,"Вокальное исполнение","Тарханова Лилия Михайловна","Диплом лауреата   I степени"]
[null,null,"Солдаткина Русалина",1,"фортепиано","Рудзит Лариса Викторовна","Диплом лауреата II степени"]
[null,null,"Сероштанова Елена",1,"Фортепиано","Салтанова Елена Борисовна","Диплом лауреата II степени"]
[null,null,"Ансамбль \"Вдохновение\" 8 лет в составе:                                           1.  Гатина Диля\n2.  Гареева София\n3.  Липатова Диана\n4.  Логинова Александра\n5.  Махмудова Алина \n6.  Рыбюк Екатерина\n7.  Ульданова Сабина\n8. Шарафисламова Софья\n                                  \n",8,"Хореография","Панкова Наталья Владимировна концертмейстер Латыпова Анастасия Тагирзяновна","Диплом лауреата II степени"]
[null,null,"Хореографический дуэт \"Вдохновение\" в составе: Усанова Дарья Нугуманова Эльвина",2,"Хореография","Панкова Наталья Владимировна концертмейстер Латыпова Анастасия Тагирзяновна","Диплом лауреата II степени"]
[null,null,"Саитова Регина",1,"фортепиано","Садыкова Татьяна Владимировна","Диплом лауреата III степени"]
[null,null,"Шамшура Михаил",1,"фортепиано","Мухаметшина Венера Робесовна","Диплом лауреата III степени"]
[null,null,"Чупина Анжелика",1,"Эстрадное пение","Будневич Тамара Константиновна","Диплом II степени"]
[null,null,"Хайбин Тимур",1,"фортепиано","Шагиева Галина Михайловна","Диплом II степени"]
["2018-02-17","Международный конкурс \"Талант - 2018\" г. Москва","Хореографический ансамбль \"Вдохновение\" в составе:                                      1.  Аменова Азалия\n2.  Мухаметханова Эльвира\n3.  Нам Алина\n4.  Прокофьева Аня\n5.  Кондратьева Александра\n6.  Зарипова Зухра\n7.  Ильина Лиза\n8.  Криськова Яна\n9.  Кулыгина Полина\n10. Хаматдинова Диана\n",10,"хореография","Реддер Галина Леонидовна концертмейстер Савастьянова Наталья Николаевна","Диплом лауреата III степени","МК РФ, Союз композиторов России"]
["2018-03-02","II Международный конкурс вокалистов \"Сандугач\"                     г. Казань","Яфясова Азалия",1,"эстрадный вокал","Хоини Рима Илдусовна","Диплом лауреата          II степени","МК РФ МК РТ"]
["2018-04-24","X Международный конкурс-фестиваль  народного творчества \"Живой родник\"","Шагиева Полина",1,"эстрадный вокал","Колтунова Татьяна Николаевна","Диплом лауреата          I степени","Цент культурных проектов, ЦДТ Вахитовского р-на г. Казани"]
[null,null,"Малыгина Мария",1,"эстрадный вокал","Колтунова Татьяна Николаевна","Диплом лауреата III степени"]
["2018-03-25","II Международный конкурс - фестиваль \"На крыльях таланта\" г. Казань","Чупина Анжелинка",1,"Академическое пение","Будневич Тамара Константиновна концертмейстер Сулейманова Ильсияр Тагировна","Диплом II степени","Фонд поддержки и развития детского творчества \"На крыльях таланта\""]
["24-25.03.2018","II Международный конкурс-фестиваль \"Fortissimo\",                       г. Ижевск","Ансамбль домристов в составе:                             Савельева Алиса                   Галина Р.Р.",1,"домра                     \"Учитель-ученик\"","Галина Резеда Радиковна концертмейстер Помазкина Людмила Лукьяновна","Диплом лауреата II степени","Министерство культуры и туризма Удмуртской Республики"]
[null,null,"Неровная Кира",1,"Фортепиано","Кольцова Елена Сергеевна","Диплом лауреата III степени"]
[null,null,"Фортепианный ансамбль в составе:                   Ерошкина Ангелина Помазкина Л.Л.",1,"фортепиано \"Учитель-ученик\"","Помазкина Людмила Лукьяновна","Диплом II степени"]
["2018-04-06","Международный конкурс                    \"Солнечный свет\"","Фортепианный ансамбль в составе:                   Ерошкина Ангелина Помазкина Л.Л.",1,"фортепиано \"Учитель-ученик\"","Помазкина Людмила Лукьяновна","Диплом лауреата          I степени","Международный педагогический портал \"Солнечный свет\""]
["2018-04-07","V Международный конкурс \"Классика и современность\"                г. Екатеринбург","Неровная Валерия",1,"Презентация","Буркова Любовь Васильевна","Диплом лауреата          I степени","Екатеринбургский мужской хоровой колледж"]
["2018-04-15","Международный фестиваль - конкурс \"Взлёт\"","Богачёва Ульяна",1,"фортепиано","Ильюшкина Виктория Витальевна","Диплом лауреата          I степени","Фонд развития исполнительского искусства \"Сфорцандо\" при поддержке МК РТ"]
[null,null,"Фортепианный дуэт в составе:                             Богачёва Ульяна, Гилязов Эмир",2,"фортепианный ансамбль","Ильюшкина Виктория Витальевна","Диплом лауреата          I степени"]
[null,null,"Гилязов Эмир",1,"фортепиано","Ильюшкина Виктория Витальевна","Диплом лауреата          I степени"]
[null,null,"Мандзюк Вероника",1,"фортепиано","Луговая Татьяна Геннадьевна","Диплом лауреата          I степени"]
[null,null,"Николаева Екатерина",1,"аккомпанемент","Помазкина Людмила Лукьяновна, иллюстратор Галина Резеда Радиковна","Диплом лауреата          I степени"]
[null,null,"Саламатова Екатерина",1,"фортепиано","Луговая Татьяна Геннадьевна","Диплом лауреата          II степени"]
[null,null,"Фортепианный дуэт в составе:                            Мыльникова Ольга, Искандарова Аделя",2,"фортепианный ансамбль","Луговая                       Татьяна Геннадьевна Помазкина                   Людмила Лукьяновна","Диплом лауреата          II степени"]
[null,null,"Николаева Екатерина",1,"фортепиано","Луговая Татьяна Геннадьевна","Диплом лауреата          II степени"]
[null,null,"Милькова Карина",1,"фортепиано","Кольцова Елена Сергеевна","Диплом лауреата          III степени"]
[null,null,"Сероштанова Елена",1,"скрипка","Салтанова Елена Борисовна концертмейстер Помазкина Людмила Лукьяновна","Диплом лауреата          III степени"]
[null,null,"Неровная Кира",1,"фортепиано","Кольцова Елена Сергеевна","Диплом лауреата          III степени"]
[null,null,"Шакиров Ринат",1,"фортепиано","Кольцова Елена Сергеевна","Диплом II степени"]
["06-20.04.2018","Международный фестиваль-конкурс молодых исполнителей \"Челны собирают друзей\"","Солдаткина Русалина",1,"фортепиано","Рудзит Лариса Викторовна","Диплом лауреата          I степени","МАУ ДО \"ДШИ №13\""]
[null,null,"Фазлыйнурова Элина",1,"фортепиано","Рудзит Лариса Викторовна","Диплом лауреата          I степени"]
[null,null,"Вилданова Амалия",1,"Эстрадный вокал","Тарханова Лилия Михайловна","Диплом лауреата          II степени"]
[null,null,"Садыкова Амина",1,"Академическое пение","Ситдикова Ольга Анатольевна концертмейстер Кудзоева Наталья Салатовна","Диплом лауреата          II степени"]
["2018-04-14","Международный фестиваль-конкурс \"Звёздный олимп\"              г. Нижнекамск ","Вилданова Амалия",1,"Эстрадный вокал","Тарханова Лилия Михайловна","Диплом лауреата          II степени","При поддержке МК РФ"]
["2018-04-14","I Международный конкурс вокально-хорового и традиционно-инструментального исполнительства \"Весенние проталины\"","Зиатдинов Даниль",1,"Академическое пение","Хуснуллина Альфия Альбертовна","Диплом лауреата          I степени","МК РФ, МК РТ КазГИК"]
[null,null,"Специальный хор \"Гармония\" в составе:           1. Апкова А.\n2. Саматова А.\n3. Долгова В. \n4. Кучина Т.  \n5. Шайхутдинова А. \n6. Аглямова К.\n7. Калимуллина А.\n8. Мардамшина С \n9. Ялалова Р.\n10. Ворошилова Д. \n11. Гайнуллина Л. \n12. Григорьева Р. \n13. Идиятуллина А. \n14. Корнева Н. \n15. Махмутова А. \n16. Насифуллина Д. \n17. Рюмина Н.\n18. ХазиеваАлия \n19. Ялалова Валерия \n20. Гиззатуллина И.\n21. Мингалимова Г.\n22. Мостовая Р.\n23.    Абдуллина Р.\n24.    Аглямова Н.\n25.    Хасаншина Э.\n26.    Хамадаллин А.\n27.    Миргалимова М.\n28.    Сафиуллина К.\n29.    Хайриева Д.\n30.    Баширов С.\n31.    Шамшура М.\n",31,"Хоровое пение","Хуснуллина Альфия Альбертовна концертмейстер Николахина Анна Валерьевна","Диплом лауреата          II степени"]
[null,null,"Харисова Элина",1,"Академическое пение","Ситдикова Ольга Анатольевна концертмейстер Николахина Анна Валерьевна","Диплом лауреата          II степени"]
[null,null,"Вокальный дуэт в составе: Потанина Дарья Потанина Надежда",2,"Вокальный ансамбль","Николаева Ольга Сергеевна концертмейстер Кудзоева Наталья Салатовна","Диплом лауреата          II степени"]
[null,null,"Рюмина Варвара",1,"Академическое пение","Хуснуллина Альфия Альбертовна концертмейстер Николахина Анна Валерьевна","Диплом лауреата          III степени"]
[null,null,"Гильманова Камиля",1,"Академическое пение","Николаева Ольга Сергеевна концертмейстер Кудзоева Наталья Салатовна","Диплом лауреата          III степени"]
[null,null,"Михайлова Полина",1,"Академическое пение","Николаева Ольга Сергеевна концертмейстер Кудзоева Наталья Салатовна","Диплом лауреата          III степени"]
[null,null,"Абдуллина Ралина",1,"Академическое пение","Ситдикова Ольга Анатольевна концертмейстер Николахина Анна Валерьевна","Диплом II степени"]
["2018-05-05","I Международный конкурс \"Art world - 2018\", г. Москва","Ханипов Раушан",1,"Презентация","Тарханова Лилия Михайловна","Диплом лауреата          I степени"]
["2018-05-12","III Международный конкурс музыкального исполнительства \"Kazan music - йорт\"","Оркестр народных инструментов в составе: ",36,"Оркестр НИ","Шигапова Гульнара Масхудовна","Диплом лауреата          I степени","МК РТ КазГик"]
["2018-05-12","III Международный конкурс музыкального исполнительства \"Kazan music - йорт\"","Хабибуллин Рамазан",1,"Баян","Семёнова Вероника Михайловна","Диплом лауреата          I степени","МК РТ КазГик"]
["2018-05-12","III Международный конкурс музыкального исполнительства \"Kazan music - йорт\"","Габдрахманов Айнур",1,"Баян","Шигапова Гульнара Масхудовна","Диплом лауреата          II степени","МК РТ КазГик"]
["2018-05-12","III Международный конкурс музыкального исполнительства \"Kazan music - йорт\"","Шигапов Данир",1,"Баян","Шигапова Гульнара Масхудовна","Диплом лауреата          II степени","МК РТ КазГик"]
["2018-05-12","III Международный конкурс музыкального исполнительства \"Kazan music - йорт\"","Хайбин Тимур",1,"Баян","Минигалеева Гульнара Вильдановна","Диплом лауреата          III степени","МК РТ КазГик"]
["2018-05-01","Международная олимпиада по музыкальной литературе \"Musicus iuvenis\" ","Васюкова Диана",1,"Музыкальная литература","Буркова Любовь Васильевна","Диплом лауреата          I степени","ГАОУ ДПО \"Институт развития образования\""]
["2018-05-01","Международная олимпиада по музыкальной литературе \"Musicus iuvenis\" ","Хабибуллин Рамазан",1,"Музыкальная литература","Лотфуллина Лилия Рафисовна","Диплом лауреата          I степени","ГАОУ ДПО \"Институт развития образования\""]
["2018-04-29","IX Международный конкурс-фестиваль детского, юношеского и молодёжного творчества \"Виктория\"","Хор мальчиков \"Эксклюзив\" в составе:                                                                      1. Пикушев Д.\n2. Ширеев А.\n3. Фазлыев А.\n4. Лазарев М.\n5. Астапкович И.\n6. Жигалов А.\n7. Пантелеев Н.\n8. Сагидуллин Э.\n 9. Янгиров А.\n 10. Гатауллин Т.\n11. Ханипов Р.\n14. Барыев Б.\n12. Зарифуллин А.\n13. Абдуллаев Б.\n15. Сагидуллин К.\n16. Губайдуллин Р.\n17. Лапицкий Е.\n18. Батаев Д.\n           ",18,"Хоровое пение","Тарханова Лилия Михайловна концертмейстер Андрейченко Марина Петровна","Диплом лауреата          I степени","Фонд поддержки творчества \"Виктория\""]
["2018-05-10","Международный конкурс-фестиваль хореографического искусства \"ДАНС КЛАСС\"","Ансамбль \"Вдохновение\" в составе:                                1.  Анкудинова Анна\n2.  Докучаева Вероника\n3.  Карсакова Полина\n4.  Ковальчук Любовь\n5.  Мусина Диана\n6.  Ситдикова Аделина\n7.  Салмиянова Ксения\n8.  Таранец Виктория\n9.  Шматыгина Ксения\n",9,"Хореография","Панкова Наталья Владимировна концертмейстер Латыпова Анастасия Тагирзяновна","Диплом лауреата          II степени","Международный благотворительный фонд \"Мир на ладони\""]
["2018-05-10","Международный конкурс-фестиваль хореографического искусства \"ДАНС КЛАСС\"","Ансамбль \"Вдохновение\" в составе:                                1.  Нугуманова Алия\n2.  Нугуманова Эльвина\n3.  Муллахметова Эльвина\n4.  Петрова Вероника\n5.  Талипова Арина\n6.  Сабирзянова Сабина\n7.  Усанова Дарья\n8.  Шагалина Евгения\n",8,"Хореография","Петрова Лидия Ивановна концертмейстер Алексеева Наиля Азатовна","Диплом лауреата          II степени","Международный благотворительный фонд \"Мир на ладони\""]
["2018-05-10","Международный конкурс-фестиваль хореографического искусства \"ДАНС КЛАСС\"","Хореографический дуэт \"Вдохновение\" в составе: Усанова Дарья Нугуманова Эльвина",2,"Хореография","Панкова Наталья Владимировна концертмейстер Латыпова Анастасия Тагирзяновна","Диплом лауреата          III степени","Международный благотворительный фонд \"Мир на ладони\""]
["2018-05-06","Международный конкурс-фестиваль «DreamFest»","Ансамбль \"Вдохновение\" в составе:                                1. Биктимирова Алина\n2. Макарова Лена\n3. Мошкова Яна\n4. Прокопьева Злата\n5. Юсупова Ильфира\n6. Прошунина Саша\n7. Кудряшова Арина\n\n",7,"Хореография","Петрова Лидия Ивановна концертмейстер Алексеева Наиля Азатовна","Диплом лауреата          II степени","Творческое фестивальное движение \"Наше время\""]
["2018-05-06","Международный конкурс-фестиваль «DreamFest»","Ансамбль \"Вдохновение\" в составе:                                1. Биктимирова Алина\n2. Макарова Лена\n3. Мошкова Яна\n4. Прокопьева Злата\n5. Юсупова Ильфира\n\n\n",5,"Хореография","Петрова Лидия Ивановна концертмейстер Алексеева Наиля Азатовна","Диплом лауреата          II степени","Творческое фестивальное движение \"Наше время\""]
["2018-05-06","Международный конкурс-фестиваль «DreamFest»","Ансамбль \"Вдохновение\" в составе:                                1.  Аменова Азалия\n2.  Мухаметханова Эльвира\n3.  Нам Алина\n4.  Прокофьева Аня\n5.  Кондратьева Александра\n6.  Зарипова Зухра\n7.  Ильина Лиза\n8.  Криськова Яна\n9.  Кулыгина Полина\n10. Хаматдинова Диана\n\n",10,"Хореография","Реддер Галина Леонидовна концертмейстер Савастьянова Наталья Николаевна","Диплом лауреата          III степени","Творческое фестивальное движение \"Наше время\""]
["2018-05-06","Международный конкурс-фестиваль «DreamFest»","Ансамбль \"Вдохновение\" в составе:                                1.  Прошунина Александра\n2.  Юсупова Ильфира\n\n",2,"Хореография","Реддер Галина Леонидовна концертмейстер Савастьянова Наталья Николаевна","Диплом I степени","Творческое фестивальное движение \"Наше время\""]
["2018-05-05","Международный конкурс фестиваль \"Планета талантов\"","Хор мальчиков \"Эксклюзив\" в составе:                                         1. Пикушев Д.\n2. Ширеев А.\n3. Фазлыев А.\n4. Лазарев М.\n5. Астапкович И.\n6. Жигалов А.\n7. Пантелеев Н.\n8. Сагидуллин Э.\n 9. Янгиров А.\n 10. Гатауллин Т.\n11. Ханипов Р.\n14. Барыев Б.\n12. Зарифуллин А.\n13. Абдуллаев Б.\n15. Сагидуллин К.\n16. Губайдуллин Р.\n17. Лапицкий Е.\n18. Батаев Д.\n           ",18,"Хоровое пение","Тарханова Лилия Михайловна концертмейстер Андрейченко Марина Петровна","Диплом лауреата          I степени","Фонд \"Планета талантов\""]
["2018-05-05","Международный конкурс фестиваль \"Планета талантов\"","Фортепианный дуэт в составе: Ерошкина Ангелина Помазкина Л.Л.",1,"Фортепиано","Помазкина Людмила Лукьяновна","Диплом лауреата          III степени","Фонд \"Планета талантов\""]
["2018-05-02","II Международный конкурс исполнительского мастерства \"Вдохновение\", г. Санкт-Петербург","Аглямова Наиля",1,"Академическое пение","Шайдуллина Гузель Маратовна концертмейстер Титова Ирина Николаевна","Диплом лауреата          I степени"]
["2018-05-02","II Международный конкурс исполнительского мастерства \"Вдохновение\", г. Санкт-Петербург","Закиева Камилла",1,"Академическое пение","Шайдуллина Гузель Маратовна концертмейстер Титова Ирина Николаевна","Диплом лауреата          I степени"]
["2018-05-02","II Международный конкурс исполнительского мастерства \"Вдохновение\", г. Санкт-Петербург","Хасаншин Эльмир",1,"Академическое пение","Шайдуллина Гузель Маратовна концертмейстер Титова Ирина Николаевна","Диплом лауреата          I степени"]
["2018-05-02","II Международный конкурс исполнительского мастерства \"Вдохновение\", г. Санкт-Петербург","Аглямов Амир",1,"Академическое пение","Шайдуллина Гузель Маратовна концертмейстер Титова Ирина Николаевна","Диплом лауреата          II степени"]
["2018-05-02","II Международный конкурс исполнительского мастерства \"Вдохновение\", г. Санкт-Петербург","Юсупова Карина",1,"Академическое пение","Шайдуллина Гузель Маратовна концертмейстер Титова Ирина Николаевна","Диплом лауреата          II степени"]
["2018-05-02","II Международный конкурс исполнительского мастерства \"Вдохновение\", г. Санкт-Петербург","Долгова Ангелина",1,"Академическое пение","Шайдуллина Гузель Маратовна концертмейстер Титова Ирина Николаевна","Диплом лауреата          II степени"]
["2018-05-02","II Международный конкурс исполнительского мастерства \"Вдохновение\", г. Санкт-Петербург","Андерьянова Зиля",1,"Академическое пение","Шайдуллина Гузель Маратовна концертмейстер Титова Ирина Николаевна","Диплом лауреата          III степени"]
["2018-05-02","II Международный конкурс исполнительского мастерства \"Вдохновение\", г. Санкт-Петербург","Апакова Алина",1,"Академическое пение","Шайдуллина Гузель Маратовна концертмейстер Титова Ирина Николаевна","Диплом лауреата          III степени"]
["2018-05-02","II Международный конкурс исполнительского мастерства \"Вдохновение\", г. Санкт-Петербург","Фасахова Аида",1,"Академическое пение","Шайдуллина Гузель Маратовна концертмейстер Титова Ирина Николаевна","Диплом I степени"]
["2018-05-02","II Международный конкурс исполнительского мастерства \"Вдохновение\", г. Санкт-Петербург","Хасаншина Эмилия",1,"Академическое пение","Шайдуллина Гузель Маратовна концертмейстер Титова Ирина Николаевна","Диплом I степени"]
["2018-03-15","Международный конкурс-игра по музыке \"Аккорд\"","Забиров Адель",1,"Музыкальная литература","Лотфуллина Лилия Рафисовна","Свидетельство участника, 3 место в РТ, 1 место в городе","ЦДО \"Снейл\""]
["2018-03-15","Международный конкурс-игра по музыке \"Аккорд\"","Гилязев Карим ",1,"Музыкальная литература","Лотфуллина Лилия Рафисовна","Свидетельство участника, 4 место в РТ, 2 место в городе","ЦДО \"Снейл\""]
["2018-03-22","Международный проект \"Инфоурок\"","Забиров Адель",1,"Музыкальная литература","Лотфуллина Лилия Рафисовна","Диплом лауреата          I степени","Инфоурок"]
["2018-03-22","Международный проект \"Инфоурок\"","Гилязев Карим ",1,"Музыкальная литература","Лотфуллина Лилия Рафисовна","Диплом лауреата          III степени","Инфоурок"]

{"sheet":"Российские","index":1,"n_rows":96,"n_cols":11,"rows_kept":96,"merged":[[0,0,0,7],[2,0,3,0],[2,1,3,1],[2,7,3,7],[6,0,7,0],[6,1,7,1],[9,0,19,0],[9,1,19,1],[9,7,19,7],[23,0,34,0],[23,1,34,1],[23,7,34,7],[35,0,39,0],[35,1,39,1],[35,7,39,7],[40,0,43,0],[40,1,43,1],[40,7,43,7],[44,0,49,0],[44,1,49,1],[44,7,49,7],[50,0,58,0],[50,1,58,1],[59,0,60,0],[59,1,60,1],[62,0,63,0],[62,1,63,1],[64,0,66,0],[64,1,66,1],[68,0,83,0],[68,1,83,1],[84,0,85,0],[84,1,85,1]]}
["ИТОГИ\nучастия учащихся Детской школы искусств №7 в российских конкурсах                                                                                         за 2017-2018 учебный год\n"]
["Дата","Уровень и название конкурса","Ф.И.О. учащегося","Кол-во учащихся","Номинация, возрастная группа","Ф.И.О. преподавателя","Достижение","Организатор конкурса"]
["2017-05-31","Всероссийская олимпиада по музыке \"Волшебная мелодия\"","Корнилов Кирилл",1,"Музыкальная литература","Рудзит Лариса Викторовна","Диплом лауреата I степени","Всероссийский образовательный портал \"Продлёнка\""]
[null,null,"Фазлыйнурова Элина",1,"Музыкальная литература","Рудзит Лариса Викторовна","Диплом лауреата I степени"]
["2017-08-28","Всероссийский  конкурс \"Вопросита\" Блиц-олимпиада \"В мире музыкальных инструментов\"","Фролова Полина",1,"Музыкальная литература","Кольцова Елена Сергеевна","Диплом лауреата II степени","Учебный центр Натальи Хаустовой Лицензия №909 от 13.08.2014"]
["2017-08-29","Всероссийский творческий конкурс \"Рассударики\"","Ломов Виталий",1,"Флейта","Толстова Юлия Павловна концертмейстер Николахина Анна Валерьевна","Диплом лауреата I степени","Всероссийское СМИ \"Рассударики\""]
["2017-08-30","Всероссийский творческий конкурс \"Талантоха\"","Данилова Диана",1,"Флейта","Толстова Юлия Павловна концертмейстер Николахина Анна Валерьевна","Диплом лауреата I степени","Всероссийское СМИ \"Талантоха\""]
[null,null,"Шайхутдинова Миляуша",1,"Флейта","Толстова Юлия Павловна концертмейстер Николахина Анна Валерьевна","Диплом лауреата I степени","Всероссийское СМИ \"Талантоха\""]
["2017-09-28","Всероссийский конкурс \"Радуга талантов\"","Кондратьева Александра",1,"Проектная работа","Савастьянова Наталья Николаевна","Диплом лауреата I степени","Сайт Всероссийских конкурсов \"РадугаТалантов.рф\""]
["2017-10-28","Открытый Всероссийский вокально-хоровой конкурс \"Чулман-Тургае\"","Гильманова Камиля",1,"Академический вокал","Николаева Ольга Сергеевна Концертмейстер Кудзоева Наталья Салатовна","Диплом                        I степени","УК Исполкома г. Наб.Челны, МАУДО \"ДМШ №4\""]
[null,null,"Феофанова Алина",1,"Академический вокал","Макушина Ольга Ярославовна Концертмейстер Рамиева Рамзия Хасановна","Диплом                        I степени"]
[null,null,"Ахунова Азалия",1,"Академический вокал","Ситдикова Ольга Анатольевна Концертмейстер Николахина Анна Валерьевна","Диплом                        I степени"]
[null,null,"Садыкова Амина",2,"Академический вокал","Ситдикова Ольга Анатольевна Концертмейстер Кудзоева Наталья Салатовна","Диплом                        I степени"]
[null,null,"Харисова Элина",1,"Академический вокал","Ситдикова Ольга Анатольевна Концертмейстер Николахина Анна Валерьевна","Диплом                        I степени"]
[null,null,"Михайлова Полина",1,"Академический вокал","Николаева Ольга Сергеевна Концертмейстер Кудзоева Наталья Салатовна","Диплом                        I степени"]
[null,null,"Рюмина Варвара",1,"Академический вокал","Хуснуллина Альфия Альбертовна концертмейстер Николахина Анна Валерьевна","Диплом участника"]
[null,null,"Зиатдинов Даниль",1,"Академический вокал","Хуснуллина Альфия Альбертовна концертмейстер Николахина Анна Валерьевна","Диплом участника"]
[null,null,"Аглямова Наиля",1,"Академический вокал","Шайдуллина Гузель Моратовна концертмейстер Титова Ирина Николаевна","Диплом участника"]
[null,null,"Андерьянова Зиля",1,"Академический вокал","Шайдуллина Гузель Моратовна концертмейстер Титова Ирина Николаевна","Диплом участника",{"$nulls":3},{"$f":"1+16+15+14+25+8","v":79}]
[null,null,"Закиева Камилла",1,"Академический вокал","Шайдуллина Гузель Моратовна концертмейстер Титова Ирина Николаевна","Диплом участника"]
["2017-10-29","Первый всероссийский конкурс патриотической эстрадной песни \"Молодые таланты отечества\"","Яфясова Азалия",1,"Эстрадное пение","Хоини Рима Илдусовна","Специальный приз"]
["2017-10-29","Открытый вокальный конкурс \"Хит парад Тм-радио\"","Шагиева Полина",1,"Эстрадное пение","Колтунова Татьяна Николаевна","Победитель","Радио ТМ"]
["2018-02-18","Открытый Всероссийский вокальный конкурс \"Чулман-Тургае\"","Кобахидзе Медея",1,"Эстрадное пение","Колтунова Татьяна Николаевна","Диплом Гран При","УК Исполкома г. Наб.Челны, МАУДО \"ДМШ №4\""]
["2018-02-23","X Всероссийский открытый фестиваль - конкурс \"Дети-детям\"","Богачёва Ульяна",1,"Фортепиано","Ильюшкина Виктория Витальевна","Диплом лауреата II степени","МК РФ, МК Пермского края"]
[null,null,"Гилязов Эмир",1,"Фортепиано","Ильюшкина Виктория Витальевна","Диплом лауреата II степени"]
[null,null,"Фортепианный ансамбль в составе: Богачева Ульяна Гилязов Эмир",2,"Фортепиано","Ильюшкина Виктория Витальевна","Диплом лауреата II степени"]
[null,null,"Фазлыйнурова Элина",1,"Фортепиано","Рудзит Лариса Викторовна","Диплом лауреата II степени"]
[null,null,"Солдаткина Русалина",1,"Фортепиано","Рудзит Лариса Викторовна","Диплом дипломанта"]
[null,null,"Богомолова Любовь",1,"Фортепиано","Рассказова Лариса Григорьевна","Диплом дипломанта"]
[null,null,"Каранаева Анастасия",1,"Фортепиано","Рассказова Лариса Григорьевна","Диплом дипломанта"]
[null,null,"Николаева Екатерина",1,"Фортепиано","Луговая Татьяна Геннадьевна","Диплом дипломанта"]
[null,null,"Малинина Софья",1,"Фортепиано","Рассказова Лариса Григорьевна","Сертификат участника"]
[null,null,"Неровная Валерия",1,"Фортепиано","Луговая Татьяна Геннадьевна","Сертификат участника"]
[null,null,"Мандзюк Вероника",1,"Фортепиано","Луговая Татьяна Геннадьевна","Сертификат участника"]
[null,null,"Фортепианный ансамбль в составе: Малинина Софья Каранаева Анастасия",2,"Фортепиано","Рассказова Лариса Григорьевна","Сертификат участника"]
["февраль 2018","I Всероссийская музыкально-теоретическая олимпиада учащихся ДМШ и ДШИ","Рафикова Диляра",1,"Музыкальная литература","Буркова Любовь Васильевна","Диплом лауреата II степени","МК РТ, Набережночелнинский колледж искусств"]
[null,null,"Феофанова Алина",1,"Музыкальная литература","Еливанова Ольга Владимировна","Диплом лауреата III степени"]
[null,null,"Феофанова Алина",1,"Сольфеджио","Еливанова Ольга Владимировна","Диплом лауреата III степени"]
[null,null,"Паскичева Софья",1,"Музыкальная литература","Еливанова Ольга Владимировна","Диплом                        I степени"]
[null,null,"Паскичева Софья",1,"Сольфеджио","Еливанова Ольга Владимировна","Диплом                        I степени"]
["2018-02-14","I Всроссийский конкурс молодых исполнителей по курсу фортепиано для учащихся разных специальностей \"Тутти\"","Ханипов Раушан",1,"Фортепиано","Гайфуллина Алла Алексадровна","Диплом лауреата I степени","МК РТ, Набережночелнинский колледж искусств"]
[null,null,"Жигалов Артём",1,"Фортепиано","Абрамова Ольга Витальевна","Диплом лауреата III степени"]
[null,null,"Фортепианный дуэт в составе:                    Калимуллина Аделя Идиятуллина Алия",2,"Фортепиано","Насырова Елена Анваровна","Диплом дипломанта"]
[null,null,"Фортепианный дуэт в составе:                    Кучина Таисися Долгова Вероника",2,"Фортепиано","Насырова Елена Анваровна","Диплом дипломанта"]
["20.02.2018","I Всроссийский конкурс молодых исполнителей  для учащихся фортепианных отделений \"Тутти\"","Садрисламова Альбина",1,"Юный концертмейстер","Ильюшкина Виктория Витальевна    иллюстратор              Шлычкова Кристина Владимировна","Диплом лауреата II степени","МК РТ, Набережночелнинский колледж искусств"]
[null,null,"Богомолова Любовь",1,"Юный концертмейстер","Рассказова Лариса Григорьевна иллюстратор              Шлычкова Кристина Владимировна","Диплом лауреата II степени"]
[null,null,"Богачёва Ульяна",1,"Фортепиано","Ильюшкина Виктория Витальевна","Диплом лауреата III степени"]
[null,null,"Неровная Валерия",1,"фортепиано","Луговая Татьяна Геннадьевна       иллюстратор              Шлычкова Кристина Владимировна","Диплом лауреата III степени"]
[null,null,"Солдаткина Русалина",1,"Фортепиано","Рудзит Лариса Викторовна","Диплом дипломанта"]
[null,null,"Фазлыйнурова Элина",1,"Фортепиано","Рудзит Лариса Викторовна","Диплом дипломанта"]
["24.02.2018","I Всроссийский конкурс молодых исполнителей  на народных инструментах \"Тутти\"","Зиганшина Камилла",1,"домра","Девяшина Элла Юрьевна концертмейстер Николахина Анна Валерьевна","Диплом лауреата I степени","МК РТ, Набережночелнинский колледж искусств"]
[null,null,"Силантьева Майя",1,"домра","Девяшина Элла Юрьевна концертмейстер Николахина Анна Валерьевна","Диплом лауреата I степени","МК РТ, Набережночелнинский колледж искусств"]
[null,null,"Толпеева Дарья",1,"домра","Девяшина Элла Юрьевна концертмейстер Николахина Анна Валерьевна","Диплом лауреата II степени","МК РТ, Набережночелнинский колледж искусств"]
[null,null,"Ханова Нурия",1,"домра","Девяшина Элла Юрьевна концертмейстер Николахина Анна Валерьевна","Диплом лауреата II степени","МК РТ, Набережночелнинский колледж искусств"]
[null,null,"Хабибуллин Рамазан",1,"баян","Шигапова Гульнара Масхудовна","Диплом лауреата II степени","МК РТ, Набережночелнинский колледж искусств"]
[null,null,"Хурматов Анвар",1,"балалайка","Левин Александр Иванович концертмейстер Харитонова Роза Миннахматовна","Диплом лауреата III степени","МК РТ, Набережночелнинский колледж искусств"]
[null,null,"Иванова Анастасия",1,"домра","Девяшина Элла Юрьевна концертмейстер Николахина Анна Валерьевна","Диплом лауреата III степени","МК РТ, Набережночелнинский колледж искусств"]
[null,null,"Трио баянистов в составе: Хуснуллин Наиль, Гилязев Карим, Денизхан Мустафа-Нияз",3,"баян","Шигапова Гульнара Масхудовна","Диплом лауреата III степени","МК РТ, Набережночелнинский колледж искусств"]
[null,null,"Петрова Полина",1,"домра","Девяшина Элла Юрьевна концертмейстер Николахина Анна Валерьевна","Диплом дипломанта","МК РТ, Набережночелнинский колледж искусств"]
[null,"I Всроссийский конкурс молодых исполнителей для учащихся вокальных отделений \"Тутти\"","Зиатдинов Даниль",1,"Академический вокал","Хуснуллина Альфия Альбертовна концертмейстер Николахина Анна Валерьевна","Диплом лауреата II степени","МК РТ, Набережночелнинский колледж искусств"]
[null,null,"Харисова Элина",1,"Академический вокал","Ситдикова Ольга Анатольевна концертмейстер Николахина Анна Валерьевна","Диплом дипломанта","МК РТ, Набережночелнинский колледж искусств"]
["14.03.2018","I Всроссийский конкурс молодых исполнителей на духовых и ударных инструментах \"Тутти\"","Закатистов Александр",1,"гобой","Загретдинова Лениза Мирзануровна концертмейстер Рассказова Лариса Григорьевна","Диплом лауреата I степени","МК РТ, Набережночелнинский колледж искусств"]
["15.03.2018","II Всероссийский конкурс юных пианистов им. Н. Жиганова","Богачёва Ульяна",1,"Фортепиано","Ильюшкина Виктория Витальевна","Диплом дипломанта","МК РТ,  КГК"]
[null,null,"Богачёва Ульяна",1,"Фортепиано","Ильюшкина Виктория Витальевна","Диплом \"За яркое исполнение пьесы Н. Жиганова\"","МК РТ,  КГК"]
["24-25.03.2018","Всероссийский фестиваль-конкурс детского и юношеского творчества \"Золотая лира\"","Шагиева Полина",1,"Эстрадное пение","Колтунова Татьяна Николаевна","Диплом лауреата I степени","ГБУК РТ \"РМЦКиИ\" Центр \"Ритм\""]
[null,null,"Вокальный дуэт в составе:                   Шагиева Полина Малыгина Мария",2,"Эстрадное пение","Колтунова Татьяна Николаевна","Диплом лауреата I степени","ГБУК РТ \"РМЦКиИ\" Центр \"Ритм\""]
[null,null,"Малыгина Мария",1,"Эстрадное пение","Колтунова Татьяна Николаевна","Диплом лауреата III степени","ГБУК РТ \"РМЦКиИ\" Центр \"Ритм\""]
["05.04.2018","Всероссийский конкурс \"Призвание\"","Фортепианный дуэт в составе: Ерошкина Ангелина Помазкина Людмила Лукьяновна",1,"Фортепиано","Помазкина Людмила Лукьяновна","Диплом лауреата I степени","Центр Всероссийского конкурсного движения \"Творчество без границ\""]
["14.04.2018","II Всероссийский конкурс \"Мужское братство\",                        г. Казань","Жук Алексей ",1,"скрипка","Хаметшина Ольга Викторовна концертмейстер Алиакберова Алия Ирековна","Диплом лауреата I степени","РЦВР, ДМХШ №3 Казань"]
[null,null,"Хабибуллин Рамазан ",1,"баян","Семенова Вероника Михайловна","Диплом лауреата I степени","РЦВР, ДМХШ №3 Казань"]
[null,null,"Трио баянистов в составе:                         Хуснуллин Наиль Денизхан Мустафа-Нияз Гилязев Карим",3,"баян","Шигапова Гульнара Масхудовна","Диплом лауреата I степени","РЦВР, ДМХШ №3 Казань"]
[null,null,"Габдрахманов Айнур",1,"баян","Шигапова Гульнара Масхудовна","Диплом лауреата I степени","РЦВР, ДМХШ №3 Казань"]
[null,null,"Гилязов Эмир",1,"скрипка","Хаметшина Ольга Викторовна концертмейстер Алиакберова Алия Ирековна","Диплом лауреата II степени","РЦВР, ДМХШ №3 Казань"]
[null,null,"Шигапов Данир",1,"баян","Семенова Вероника Михайловна","Диплом лауреата II степени","РЦВР, ДМХШ №3 Казань"]
[null,null,"Хуснуллин Наиль ",1,"баян","Шигапова Гульнара Масхудовна","Диплом лауреата II степени","РЦВР, ДМХШ №3 Казань"]
[null,null,"Хайруллин Тимур",1,"баян","Минигалеева Гульнара Вильдановна","Диплом лауреата III степени","РЦВР, ДМХШ №3 Казань"]
[null,null,"Данилов Арсений ",1,"баян","Минигалеева Гульнара Вильдановна","Диплом лауреата III степени","РЦВР, ДМХШ №3 Казань"]
[null,null,"Денизхан Мустафа-Нияз",1,"баян","Шигапова Гульнара Масхудовна","Диплом лауреата III степени","РЦВР, ДМХШ №3 Казань"]
[null,null,"Гилязев Карим",1,"баян","Шигапова Гульнара Масхудовна","Диплом                         I степени","РЦВР, ДМХШ №3 Казань"]
[null,null,"Хурматов Анвар",1,"балалайка","Левин Александр Иванович конөертмейстер Харитонова Роза Миннахматовна","Диплом                         I степени","РЦВР, ДМХШ №3 Казань"]
[null,null,"Шарифуллин Саид",1,"Фортепиано","Хурматова Альфия Якубовна","Диплом                         II степени","РЦВР, ДМХШ №3 Казань"]
[null,null,"Шарифуллин Азамат",1,"Фортепиано","Хурматова Альфия Якубовна","Диплом                         III степени","РЦВР, ДМХШ №3 Казань"]
[null,null,"Афанасьев Эрнест",1,"Фортепиано","Хурматова Альфия Якубовна","Диплом                         III степени","РЦВР, ДМХШ №3 Казань"]
[null,null,"Гилязов Роберт",1,"фортепиано","Ананьева Елена Николаевна","Диплом                         III степени","РЦВР, ДМХШ №3 Казань"]
["2018-04-01","Всероссийский конкурс                    \"В вихре танца\"","Хореографический ансамбль \"Вдохновение\" в составе:                                        1.  Анкудинова Анна\n2.  Докучаева Вероника\n3.  Карсакова Полина\n4.  Ковальчук Любовь\n5.  Мусина Диана\n6.  Ситдикова Аделина\n7.  Салмиянова Ксения\n8.  Таранец Виктория\n9.  Шматыгина Ксения\n\n",9,"Весёлый этюд","Панкова Наталья Владимировна концертмейстер Латыпова Анастасия Тагирзяновна","Диплом                   II степени","ТИСБИ, ИМЦ, ГДТДиМ №1"]
[null,null,"Хореографический ансамбль \"Вдохновение\" в составе:                                        1.  Аменова Азалия\n2.  Мухаметханова Эльвира\n3.  Нам Алина\n4.  Прокофьева Аня\n5.  Кондратьева Александра\n6.  Зарипова Зухра\n7.  Ильина Лиза\n8.  Криськова Яна\n9.  Кулыгина Полина\n10. Хаматдинова Диана\n\n\n",10,"Весёлый этюд","Панкова Наталья Владимировна концертмейстер Латыпова Анастасия Тагирзяновна","Диплом                   II степени","ТИСБИ, ИМЦ, ГДТДиМ №1"]
["2018-05-05","II Всероссийская заочная олимпиада по сольфеджио \"Весенняя гармония\"","Фалляхов Булат",1,"Сольфеджио","Еливанова Ольга Владимировна","Диплом лауреата II степени","ДМШ №2 г. Дзержинск"]
["2018-05-05","II Всероссийская заочная олимпиада по сольфеджио \"Весенняя гармония\"","Трофимов Роман",1,"Сольфеджио","Еливанова Ольга Владимировна","Диплом лауреата III степени","ДМШ №2 г. Дзержинск"]
["2018-05-05","II Всероссийская заочная олимпиада по сольфеджио \"Весенняя гармония\"","Файзуллина Зульфина",1,"Сольфеджио","Еливанова Ольга Владимировна","Диплом лауреата III степени","ДМШ №2 г. Дзержинск"]
["2018-03-18","IV Всероссийская музыкально-теоретическая олимпиада","Паскичева Софья",1,"Сольфеджио","Еливанова Ольга Владимировна","Диплом лауреата III степени","МК РТ, Казанский музколледж"]
["2018-03-18","IV Всероссийская музыкально-теоретическая олимпиада","Паскичева Софья",1,"Сольфеджио","Еливанова Ольга Владимировна","Диплом \"Лучший диктант\"","МК РТ, Казанский музколледж"]
["2018-03-18","IV Всероссийская музыкально-теоретическая олимпиада","Феофанова Алина",1,"Музыкальная литература","Еливанова Ольга Владимировна","Диплом                   II степени","МК РТ, Казанский музколледж"]
["19-22.01.2018","IV Всероссийский хоровой конкурс-фестиваль \"Хоровая Казань-2018\" ","Старший хор \"Канцона\" в составе:                     1. Файзулина Р.\n2. Богомолова Л.\n3. Калимуллин Р.\n4. Уткина К.\n5. Саламатова Е.\n6. Плотников Р.\n7. Саламатова Ю.\n8. Максимов И.\n9. Рамазанова Д.\n10. Мадифурова А.\n11. Белоглазова А.\n12. Искандарова А.\n13. Коновалова А.\n14. Мифтяхова Л.\n15. Мифтяхова Д.\n16. Николаева К.\n17. Малинина А.\n18. Розова А.\n19. Виноградова М.\n20. Колчина К.\n21. Воркунова В.\n22. Шарипова Т.\n23. Неровная В.\n24. Овчинникова А.\n25. Цветкова А.\n26. Батяева Е.\n27. Батяева Д.\n28. Исакова А.\n29. Мыльникова О.\n30. Махянова Л.\n31. Савинков В.\n32. Жиркова П.\n33. Димухаметова С.\n34. Нигматуллина Э.\n35. Басырова Э.\n36. Зайниева Э.\n",36,"Хоровое пение","Замилова Луйиза Мегдятовна концертмейстер Алиакберова Алия Ирековна","Диплом лауреата I степени","Фонд Глобус Кантата"]
["19-22.01.2018","IV Всероссийский хоровой конкурс-фестиваль \"Хоровая Казань-2018\" ","Старший хор \"Канцона\" в составе:                            1. Файзулина Р.\n2. Богомолова Л.\n3. Калимуллин Р.\n4. Уткина К.\n5. Саламатова Е.\n6. Плотников Р.\n7. Саламатова Ю.\n8. Максимов И.\n9. Рамазанова Д.\n10. Мадифурова А.\n11. Белоглазова А.\n12. Искандарова А.\n13. Коновалова А.\n14. Мифтяхова Л.\n15. Мифтяхова Д.\n16. Николаева К.\n17. Малинина А.\n18. Розова А.\n19. Виноградова М.\n20. Колчина К.\n21. Воркунова В.\n22. Шарипова Т.\n23. Неровная В.\n24. Овчинникова А.\n25. Цветкова А.\n26. Батяева Е.\n27. Батяева Д.\n28. Исакова А.\n29. Мыльникова О.\n30. Махянова Л.\n31. Савинков В.\n32. Жиркова П.\n33. Димухаметова С.\n34. Нигматуллина Э.\n35. Басырова Э.\n36. Зайниева Э.\n",36,"Хоровое пение","Замилова Луйиза Мегдятовна концертмейстер Алиакберова Алия Ирековна","Диплом \"За лучшую интерпретацию современной музыки\"","Фонд Глобус Кантата"]
["2018-05-05","Всероссийский конкурс исследовательских работ учащихся \"Свет познания\"","Коновалова Анастасия",1,null,"Луговая Татьяна Геннадьевна","Диплом                         I степени","СМИ \"Открытые ладони\""]
["2018-05-10","Всероссийский культурно-благотворительный фестиваль детского творчества \"Добрая волна\"","Яфясова Азалия",1,"Вокал","Хоини Рима Илдусовна","Диплом лауреата I степени"]

{"sheet":"Республиканские","index":2,"n_rows":183,"n_cols":10,"rows_kept":183,"merged":[[0,0,0,7],[3,0,7,0],[3,1,7,1],[3,7,7,7],[8,0,24,0],[8,1,24,1],[8,7,24,7],[25,0,26,0],[25,1,26,1],[28,0,29,0],[28,1,29,1],[28,7,29,7],[30,0,31,0],[30,7,31,7],[32,0,36,0],[32,1,36,1],[32,7,36,7],[37,0,54,0],[37,1,54,1],[37,7,54,7],[55,0,56,0],[55,1,56,1],[57,0,74,0],[57,1,74,1],[75,0,78,0],[75,1,78,1],[79,0,80,0],[79,1,80,1],[81,0,92,0],[81,1,92,1],[93,0,99,0],[93,1,99,1],[100,0,110,0],[100,1,110,1],[111,0,118,0],[111,1,118,1],[119,0,120,0],[119,1,120,1],[121,0,122,0],[121,1,122,1],[123,0,155,0],[123,1,155,1],[156,0,160,0],[156,1,160,1],[161,0,163,0],[161,1,163,1],[161,7,163,7],[167,0,173,0],[167,1,172,1],[174,0,178,0],[174,1,178,1],[174,7,178,7],[179,0,182,0],[179,1,182,1],[179,7,182,7]]}
["ИТОГИ\nучастия учащихся Детской школы искусств №7 в республиканских конкурсах                                                                            за 2017-2018 учебный год\n"]
["Дата","Уровень и название конкурса","Ф.И.О. учащегося","Кол-во учащихся","Номинация, возрастная группа","Ф.И.О. преподавателя","Достижение","Организатор конкурса"]
["2017-10-29","XVI Республиканский молодёжный музыкальн-поэтический фестиваль им. Рустема Бикмуллина","Ахметшина Диана",1,"Эстрадный вокал","Колтунова Татьяна Николаевна","Приз зрительских симпатий","Министерство молодёжи и спорта"]
["2017-11-01","Открытый республиканский конкурс национального искусства \"Бэхет йолдызы\"","Имамова Эмилия",1,"Эстрадный вокал","Колтунова Татьяна Николаевна","Диплом лауреата I степени","ГДТДиМ №1, УВО ТИСБИ"]
[null,null,"Ахметшина Диана",1,"Эстрадный вокал","Колтунова Татьяна Николаевна","Диплом лауреата II степени"]
[null,null,"Шагиева Полина",1,"Эстрадный вокал","Колтунова Татьяна Николаевна","Диплом                         I степени"]
[null,null,"Валиева Азалия",1,"Художественное слово","Мингазова Ильзина Индусовна","Диплом                         I степени"]
[null,null,"Гарифуллина Эльвина",1,"Художественное слово","Ибрагимова Василя Раифовна","Диплом                         I степени"]
["2017-12-01","I Открытый республиканский конкурс \"Город творчества\"                        г. Нижнекамск","Харисова Элина",1,"Академическое пение","Ситдикова Ольга Анатольевна концертмейстер Николахина Анна Валерьевна","Диплом лауреата I степени","УК                      ДШИ и ДМШ       г. Нижнекамск"]
[null,null,"Михайлова Полина",1,"Академическое пение","Николаева Ольга Сергеевна концертмейстер Кудзоева Наталья Салатовна","Диплом лауреата I степени"]
[null,null,"Хаматшина Альзана",1,"Академическое пение","Николаева Ольга Сергеевна концертмейстер Кудзоева Наталья Салатовна","Диплом лауреата I степени"]
[null,null,"Богачева Ульяна",1,"Фортепиано","Ильюшкина Виктория Витальевна","Диплом лауреата I степени"]
[null,null,"Саламатова Екатерина",1,"Фортепиано","Луговая Татьяна Геннадьевна","Диплом лауреата I степени"]
[null,null,"Мандзюк Вероника",1,"Фортепиано","Луговая Татьяна Геннадьевна","Диплом лауреата II степени"]
[null,null,"Паскичева София",1,"Музыкальная литература","Еливанова Ольга Владимировна","Диплом лауреата II степени"]
[null,null,"Феофанова Алина",1,"Музыкальная литература","Еливанова Ольга Владимировна","Диплом лауреата II степени"]
[null,null,"Паскичева София",1,"Сольфеджио","Еливанова Ольга Владимировна","Диплом лауреата III степени"]
[null,null,"Макушин Владислав",1,"Сольфеджио","Еливанова Ольга Владимировна","Диплом лауреата III степени"]
[null,null,"Феофанова Алина",1,"Музыкальная литература","Еливанова Ольга Владимировна","Диплом лауреата III степени"]
[null,null,"Садыкова Амина",1,"Академическое пение","Ситдикова Ольга Анатольевна концертмейстер Кудзоева Наталья Салатовна","Диплом лауреата III степени"]
[null,null,"Анкудинова Софья",1,"Академическое пение","Николаева Ольга Сергеевна концертмейстер Кудзоева Наталья Салатовна","Диплом                         I степени"]
[null,null,"Фазлыйнурова Эллина",1,"Фортепиано","Рудзит Лариса Викторовна","Диплом                         I степени"]
[null,null,"Макушин Владислав",1,"Музыкальная литература","Еливанова Ольга Владимировна","Диплом                        II степени"]
[null,null,"Каранаева Анастасия",1,"Фортепиано","Рассказова Лариса Григорьевна","Диплом                      III степени"]
[null,null,"Мансурова Алия",1,"Академическое пение","Ситдикова Ольга Анатольевна концертмейстер Николахина Анна Валерьевна","Диплом                      III степени"]
["2017-12-05","Республиканский конкурс -фестиваль детского и юношеского творчества                                                         \"Tat-Ars-Tan\" г. Казань","Фёдоров Григорий",1,"гобой","Загретдинова Лениза Мирзануровна концертмейстер Рассказова Лариса Григорьевна","Диплом участника","МК РТ, Респ. Методический кабинет"]
[null,null,"Закатистов Александр",1,"гобой","Загретдинова Лениза Мирзануровна концертмейстер Рассказова Лариса Григорьевна","Диплом участника","МК РТ, Респ. Методический кабинет"]
["2017-12-01","Республикансканаучно-практическая конференция \"Эврика\"                                        г. Казань","Патракова Елизавета",1,"НПК учащихся","Садыкова Татьяна Владимировна","Диплом                         I степени"]
["2018-02-16","VII Республиканская научно-практическая конференция \"Музыкальные гении.                  Н. Римский-корсаков\"","Идиятуллина Алия",1,"НПК учащихся","Лотфуллина Лилия Рафисовна","Диплом лауреата I степени","МК, Набережночелнинский колледж искусств"]
[null,null,"Силантьева Майя",1,"НПК учащихся","Буркова Любовь Васильевна","Диплом лауреата II степени"]
["2018-02-01","II Республиканский конкурс презентаций \"Природа и музыка\"","Григорьева Рената",1,null,"Лотфуллина Лилия Рафисовна","Диплом лауреата I степени"]
[null,"II Республиканский конкурс презентаций \"Природа и музыка\"","Валиева Амалия",1,null,"Лотфуллина Лилия Рафисовна","Диплом лауреата II степени"]
["2018-02-17","VIII Республиканский конкурс-фестиваль детского исполнительства \"Семь нот\" Ансамбли и оркестры народных инструментов","Дуэт НИ в составе: Зиганшина Камилла Хабибуллин Рамазан",2,"домра, баян","Семёнова Вероника Михайловна ","Диплом лауреата II степени","ГБУ ДПО ИДПО ДШИ 7"]
[null,null,"Дуэт домристов в составе:                         Карямова Миляуша Молчанова Карина",2,"домра","Ларионова Оксана Михайловна\nконцертмейстер\nФролов Владислав Александрович\n","Диплом лауреата III степени"]
[null,null,"Оркестр народных инструментов \"Folk Nova\" в составе:            1. Петрова Полина  \n2. Ханова Нурия  \n3. Хохрева Яна       \n4. Толпеева Даша             \n5. Иванова Настя        \n6. Билалова Энже  \n7. Савельева Алиса  \n8. Силантьева Майя  \n9. Молчанова Карина \n10. Карямова Миляуша \n11. Хасанова Алия    \n12. Яфаева Зухра     \n13. Зиганшина Камилла \n14. Хайруллина Азалия \n15. Толпеев Вениамин    \n16. Галеев Алмаз  \n17. Хабибуллин Рамазан \n18. Данилов Арсений     \n19. Габдрахманов Айнур \n20. Басыров Нияз  \n21. Валиуллин Марат \n22. Шайхутдинов Наиль \n23. Галимов Разиль  \n24. Нуриев Наиль  \n25. Забиров Адель     \n26. Хуснуллин Наиль \n27. Бигиева Арина  \n28. Гилязев Карим  \n29. Денизхан Мустафа  \n30. Помыткин Дима  \n31. Колчерин Костя  \n32. Фассахов Ролан  \n33. Николаев Игорь  \n34. Хабибуллин Камиль \n35. Хошобин Саша  \n36. Фахритдинов Булат\n",36,"оркестр","Шигапова Гульнара Масхудовна","Диплом лауреата III степени"]
[null,null,"Трио баянистов в составе:                         Хуснуллин Наиль Денизхан Мустафа-Нияз Гилязев Карим",3,"баян","Шигапова Гульнара Масхудовна","Диплом лауреата III степени"]
[null,null,"Ансамбль НИ в составе:             Савельева Алиса Габдрахманов Айнур Хабибуллин Камиль",3,null,"Галина Резеда Радиковна","Диплом участника"]
["2018-03-01","VIII Республиканский конкурс-фестиваль детского исполнительства \"Семь нот\" Научно-практическая конференция учащихся","Валиева Амалия",1,"НПК учащихся","Лотфуллина Лилия Рафисовна","Диплом лауреата I степени","ГБУ ДПО ИДПО ДШИ 7"]
[null,null,"Ханипов Раушан",1,"НПК учащихся","Тарханова Лилия Михайловна","Диплом лауреата I степени"]
[null,null,"Григорьева Рената",1,"НПК учащихся","Лотфуллина Лилия Рафисовна","Диплом лауреата II степени"]
[null,null,"Емельянова Эльза",1,"НПК учащихся","Лотфуллина Лилия Рафисовна                       Журавлёва Рамзия Нагимовна","Диплом лауреата II степени"]
[null,null,"Сулейманова Аделя",1,"НПК учащихся","Рудзит Лариса Викторовна","Диплом лауреата II степени"]
[null,null,"Хазиева Алина",1,"НПК учащихся","Хуснуллина Альфия Альбертовна","Диплом лауреата III степени"]
[null,null,"Нигматуллина Эвелина",1,"НПК учащихся","Луговая Татьяна Геннадьевна","Диплом лауреата III степени"]
[null,null,"Кондратьева Александра",1,"НПК учащихся","Реддер Галина Леонидовна","Диплом лауреата III степени"]
[null,null,"Коновалова Анастасия",1,"НПК учащихся","Луговая Татьяна Геннадьевна","Диплом лауреата III степени"]
[null,null,"Прокофьева Анна",1,"НПК учащихся","Савастьянова Наталья Николаевна","Диплом лауреата III степени"]
[null,null,"Неровная Валерия",1,"НПК учащихся","Буркова Любовь Васильевна","Диплом лауреата III степени"]
[null,null,"Богомолова Любовь",1,"НПК учащихся","Замилова Луйиза Мегдятовна","Диплом лауреата III степени"]
[null,null,"Жиркова Полина",1,"НПК учащихся","Кузьмичева Надежда Владимировна","Диплом                         I степени"]
[null,null,"Кучина Таисия",1,"НПК учащихся","Насырова Елена Анваровна","Диплом                         I степени"]
[null,null,"Зигангирова Алина",1,"НПК учащихся","Знатина Ульяна Юрьевна ","Диплом                        II степени"]
[null,null,"Мустафина Аделина",1,"НПК учащихся","Гайфуллина Алла Александровна","Диплом                        II степени"]
[null,null,"Усанова Дарья",1,"НПК учащихся","Панкова Наталья Владимировна                   Латыпова Анастасия Тагирзяновна","Диплом                      III степени"]
[null,null,"Петрова Вераника",1,"НПК учащихся","Петрова Лидия Ивановна                Алексеева Наиля Азатовна","Диплом участника"]
["2018-03-03","IX Республиканский конкурс-фестиваль \"Камская мозаика\" г. Чистополь","Старший общий хор \"Канцона\" в составе:       1. Файзулина Р.\n2. Богомолова Л.\n3. Калимуллин Р.\n4. Уткина К.\n5. Саламатова Е.\n6. Плотников Р.\n7. Саламатова Ю.\n8. Максимов И.\n9. Рамазанова Д.\n10. Мадифурова А.\n11. Белоглазова А.\n12. Искандарова А.\n13. Коновалова А.\n14. Мифтяхова Л.\n15. Мифтяхова Д.\n16. Николаева К.\n17. Малинина А.\n18. Розова А.\n19. Виноградова М.\n20. Колчина К.\n21. Воркунова В.\n22. Шарипова Т.\n23. Неровная В.\n24. Овчинникова А.\n25. Цветкова А.\n26. Батяева Е.\n27. Батяева Д.\n28. Исакова А.\n29. Мыльникова О.\n30. Махянова Л.\n31. Савинков В.\n32. Жиркова П.\n33. Димухаметова С.\n34. Нигматуллина Э.\n35. Басырова Э.\n36. Зайниева Э.\n",36,"Хоровое пение","Замилова Луйиза Мегдятовна концертмейстер Алиакберова Алия Ирековна","Диплом лауреата I степени","МК, ДШИ Чистополь"]
[null,null,"Вокальный ансамбль \"Соловушки\" в составе:                                1. Татаренкова Я.\n2. Гиздатуллина С.\n3. Богачева У. 4. Белов Д.\n5. Клочихин А. 6. Сафина Д.\n7. Гумерова С. 8. Юсупова М.\n",8,"Хоровое пение","Замилова Луйиза Мегдятовна концертмейстер Алиакберова Алия Ирековна","Диплом лауреата I степени","МК, ДШИ Чистополь"]
["6-8.03.2018","XVII Республиканский телевизионный конкурс \"Созвездие-Йолдызлык\"","Вокальный квартет \"Колибри\" в составе: Куркина Елизавета Имамова Эмилия Несветаева Ольга Ахметшина Диана",4,"Вокальные ансамбли","Колтунова Татьяна Николаевна","Диплом лауреата I степени","Кабинет министров РТ"]
[null,null,"Кобахидзе Медея",1,"Вокал соло","Колтунова Татьяна Николаевна","Диплом лауреата I степени","Кабинет министров РТ"]
[null,null,"Несветаева Ольга",1,"Вокал соло","Колтунова Татьяна Николаевна","Диплом лауреата II степени","Кабинет министров РТ"]
[null,null,"Шагиева Полина",1,"Вокал соло","Колтунова Татьяна Николаевна","Диплом лауреата II степени","Кабинет министров РТ"]
[null,null,"Имамова Эмилия",1,"Вокал соло","Колтунова Татьяна Николаевна","Диплом лауреата II степени","Кабинет министров РТ"]
[null,null,"Яфясова Азалия",1,"Вокал соло","Хоини Рима Илдусовна","Диплом лауреата III степени","Кабинет министров РТ"]
[null,null,"Малыгина Мария",1,"Вокал соло","Колтунова Татьяна Николаевна","Диплом лауреата III степени","Кабинет министров РТ"]
[null,null,"Петухова Милана",1,"Вокал соло","Колтунова Татьяна Николаевна","Диплом участника","Кабинет министров РТ"]
[null,null,"Куркина Елизавета",1,"Вокал соло","Колтунова Татьяна Николаевна","Диплом участника","Кабинет министров РТ"]
[null,null,"Вокальный ансамбль \"Колибри\" в составе: Куркина Елизавета Имамова Эмилия Несветаева Ольга Ахметшина Диана                           Жданов Салават                           Ногуманов Игорь                    Шагиева Полина                      Малыгина Мария                        Черных Данил                      Ризатдинов Тимур",11,"вокальные ансамбли","Колтунова Татьяна Николаевна","Диплом участника","Кабинет министров РТ"]
[null,null,"Равзетдинов Камиль",1,"Вокал соло","Колтунова Татьяна Николаевна","Диплом участника","Кабинет министров РТ"]
[null,null,"Жданов Салават",1,"Вокал соло","Колтунова Татьяна Николаевна","Диплом участника","Кабинет министров РТ"]
[null,null,"Ахметшина Диана",1,"Вокал соло","Колтунова Татьяна Николаевна","Диплом участника","Кабинет министров РТ"]
[null,null,"Ногуманов Игорь",1,"Вокал соло","Колтунова Татьяна Николаевна","Диплом участника","Кабинет министров РТ"]
[null,null,"Черных Данил",1,"Вокал соло","Колтунова Татьяна Николаевна","Диплом участника","Кабинет министров РТ"]
[null,null,"Вокальный дуэт в составе:                             Шагиева Полина Малыгина Мария",2,"Вокальные ансамбли","Колтунова Татьяна Николаевна","Диплом участника","Кабинет министров РТ"]
[null,null,"Вокальный дуэт в составе:                             Куркина Елизавета Имамова Эмилия",2,"Вокальные ансамбли","Колтунова Татьяна Николаевна","Диплом участника","Кабинет министров РТ"]
[null,null,"Хореографический ансамбль \"Вдохновение\" в составе:                                    1.  Аменова Азалия\n2.  Мухаметханова Эльвира\n3.  Нам Алина\n4.  Прокофьева Аня\n5.  Кондратьева Александра\n6.  Зарипова Зухра\n7.  Ильина Лиза\n8.  Ложкина Евгения\n9.  Кулыгина Полина\n10. Хаматдинова Диана\n",10,"Хореография","Петрова Лидия Ивановна концертмейстер                    Алексеева Наиля Азатовна","Диплом участника","Кабинет министров РТ"]
["2018-03-03","VIII Республиканский конкурс-фестиваль детского исполнительства \"Семь нот\" Вокальные ансамбли","Вокальный ансамбль \"Мелодия\" в составе: Мурадымова Алина, Умарова Камилла, Зубова Дарья, \nАбдуллаева Севинч, Калимуллина Роза, Загидуллина Талия, Гарипова Зарина\n",7,"Вокальные ансамбли","Суходольская Рузалия Салиховна               концертмейстер                 Латыпова Анастасия Тагирзяновна","Диплом лауреата I степени","ГБУ ДПО ИДПО ДШИ 7"]
[null,null,"Вокальный ансамбль \"Улыбка\" в составе: Габдрахманова Азалия Гатиатуллина Зиля                          Гасимов Азат                 Горбунова Арина Ильина Снежанна Исмагилова Милана Минеева Сабина                Ракаева Аделаида Хайруллина Регина",9,"Вокальные ансамбли","Храмушина Наталья Николаевна                 концертмейстер Козук Ксения Александровна","Диплом лауреата II степени","ГБУ ДПО ИДПО ДШИ 8"]
[null,null,"Вокальный ансамбль \"Мелодика\" в составе: Долгова Анна                            Латыпова Ралина   Михайлова Полина Назмиева Амира Фардиева Диляра Фассахова Аида Хаматшина Альзана Анкудинова Анна",8,"Вокальные ансамбли","Николаева Ольга Сергеевна                                  концертмейстер                  Хурматова Альфия Якубовна","Диплом лауреата III степени","ГБУ ДПО ИДПО ДШИ 7"]
[null,null,"Вокальный ансамбль \"Весёлые девчата\" в составе:                           Лукина Элина               Каткова Виктория Капуста Виктория",3,"Вокальные ансамбли","Хоини Рима Илдусовна концертмейстер Сулейманова Ильсияр Тагировна","Диплом лауреата III степени","ГБУ ДПО ИДПО ДШИ 7"]
["2018-03-03","VIII Республиканский конкурс-фестиваль детского исполнительства \"Семь нот\" Ансамбли оркестровых инструментов","Ансамбль скрипачей в составе:                      Галимова Гульназ, Бикташева Дарина, Файзуллина Лиана, Панченко Алина, Шагиев Артур                                 ",5,"Ансамбли","Зубова Янина Владимировна концертмейстер Ананьева Елена Николаевна","Диплом лауреата III степени","ГБУ ДПО ИДПО ДШИ 7"]
[null,null,"Ансамбль флейтистов в составе:                    Данилова Диана Шубина София",2,"Ансамбли","Толстова Юлия Павловна концертмейстер      Николахина Анна Валерьевна","Диплом лауреата III степени","ГБУ ДПО ИДПО ДШИ 7"]
["2018-03-14","VIII Республиканский конкурс-фестиваль детского исполнительства \"Семь нот\" Общее фортепиано","Жигалов Артём",1,"Общее фортепиано","Абрамова Ольга Витальевна","Диплом лауреата II степени","ГБУ ДПО ИДПО ДШИ 7"]
[null,null,"Жиркова Полина",1,"Общее фортепиано","Кузьмичева Надежда Владимировна","Диплом лауреата II степени","ГБУ ДПО ИДПО ДШИ 7"]
[null,null,"Шамшура Михаил",1,"Общее фортепиано","Мухаметшина Венера Робесовна","Диплом лауреата III степени","ГБУ ДПО ИДПО ДШИ 7"]
[null,null,"Фортепианный дуэт в составе:                                  Потанина Дарья Потанина Надежда",2,"Общее фортепиано","Садыкова Татьяна Владимировна","Диплом лауреата III степени","ГБУ ДПО ИДПО ДШИ 7"]
[null,null,"Ногуманов Игорь",1,"Общее фортепиано","Помазкина Людмила Лукьяновна","Диплом лауреата III степени","ГБУ ДПО ИДПО ДШИ 7"]
[null,null,"Фортепианный дуэт в составе:                                  Махмутова Амина Насифуллина Диляра",2,"Общее фортепиано","Журавлёва Рамзия Нагимовна","Диплом лауреата III степени","ГБУ ДПО ИДПО ДШИ 7"]
[null,null,"Фортепианный дуэт в составе:                                  Зигангирова Алина Юсупова Карина",2,"Общее фортепиано","Титова Ирина Николаевна","Диплом лауреата III степени","ГБУ ДПО ИДПО ДШИ 7"]
[null,null,"Фортепианный дуэт в составе:                                  Гареева Алия     Харисова Элина",2,"Общее фортепиано","Кудзоева Наталья Салатовна","Диплом лауреата III степени","ГБУ ДПО ИДПО ДШИ 7"]
[null,null,"Фортепианный дуэт в составе:                                  Хайриева Джамиля Апакова Алина",2,"Общее фортепиано","Журавлёва Рамзия Нагимовна                      Титова Ирина Николаевна","Диплом лауреата III степени","ГБУ ДПО ИДПО ДШИ 7"]
[null,null,"Фортепианный дуэт в составе:                                  Долгова Вероника Кучина Таисия",2,"Общее фортепиано","Насырова Елена Анваровна","Диплом дипломанта","ГБУ ДПО ИДПО ДШИ 7"]
[null,null,"Фортепианный дуэт в составе:                                  Калимуллина Аделя Идиятуллина Алия",2,"Общее фортепиано","Насырова Елена Анваровна","Диплом дипломанта","ГБУ ДПО ИДПО ДШИ 7"]
[null,null,"Фортепианный дуэт в составе:                                  Михайлова Полина Хаматшина Альзана",2,"Общее фортепиано","Кудзоева Наталья Салатовна","Диплом дипломанта","ГБУ ДПО ИДПО ДШИ 7"]
["2018-03-14","VIII Республиканский конкурс-фестиваль детского исполнительства \"Семь нот\" Фортепианные ансамбли","Фортепианный дуэт в составе:       Солдаткина Русалина Зубова Николь",2,"Специальное фортепиано","Рудзит Лариса Викторовна","Диплом лауреата I степени","ГБУ ДПО ИДПО ДШИ 7"]
[null,null,"Фортепианный дуэт в составе:                                  Богачева Ульяна Гилязов Эмир",2,"Специальное фортепиано","Ильюшкина Виктория Витальевна","Диплом лауреата II степени","ГБУ ДПО ИДПО ДШИ 7"]
[null,null,"Фортепианный дуэт в составе:                                  Николаева Екатерина Саламатова Екатерина",2,"Специальное фортепиано","Луговая Татьяна Геннадьевна","Диплом лауреата III степени","ГБУ ДПО ИДПО ДШИ 7"]
[null,null,"Фортепианный дуэт в составе:                                  Искандарова Аделя Мыльникова Ольга",2,"Специальное фортепиано","Помазкина Людмила Лукьяновна                         Луговая Татьяна Геннадьевна","Диплом лауреата III степени","ГБУ ДПО ИДПО ДШИ 7"]
[null,null,"Фортепианный дуэт в составе:                                  Димухаметова София Максимов Иван",2,"Специальное фортепиано","Ильюшкина Виктория Витальевна                           Луговая Татьяна Геннадьевна","Диплом лауреата III степени","ГБУ ДПО ИДПО ДШИ 7"]
[null,null,"Фортепианный дуэт в составе:                                  Казаева Александра Татаренкова Янина",2,"Специальное фортепиано","Ильюшкина Виктория Витальевна","Диплом лауреата III степени","ГБУ ДПО ИДПО ДШИ 7"]
[null,null,"Фортепианный дуэт в составе:                                  Малинина Софья Каранаева Анастасия",2,"Специальное фортепиано","Рассказова Лариса Григорьевна","Диплом дипломанта","ГБУ ДПО ИДПО ДШИ 7"]
["2017-03-10","VIII Республиканский конкурс-фестиваль детского исполнительства \"Семь нот\" Хоровое пение ","Старший общий хор \"Канцона\" в составе:        1. Файзулина Р.\n2. Богомолова Л.\n3. Калимуллин Р.\n4. Уткина К. 5. Саламатова Е.\n6. Плотников Р.\n7. Саламатова Ю.\n8. Максимов И. 9. Рамазанова Д.\n10. Мадифурова А.\n11. Белоглазова А.\n12. Искандарова А.\n13. Коновалова А.\n14. Мифтяхова Л.\n15. Мифтяхова Д.\n16. Николаева К.\n17. Малинина А.\n18. Розова А.\n19. Виноградова М.\n20. Колчина К.\n21. Воркунова В.\n22. Шарипова Т.\n23. Неровная В.\n24. Овчинникова А.\n25. Цветкова А.\n26. Батяева Е. 27. Батяева Д.\n28. Исакова А.\n29. Мыльникова О.\n30. Махянова Л.\n31. Савинков В. 32. Жиркова П.\n33. Димухаметова С.\n34. Нигматуллина Э.\n35. Басырова Э.\n36. Зайниева Э.\n          ",36,"Хоровое пение","Замилова Луйиза Мегдятовна концертмейстер Алиакберова Алия Ирековна","Диплом лауреата I степени","ГБУ ДПО ИДПО ДШИ 7"]
[null,null,"Младший общий хор \"Соловушки\" в составе:                       1. Татаренкова Я.\n2. Гиздатуллина С.\n3. Богачева У.\n4. Белов Д.\n5. Клочихин А.\n6. Сафина Д.\n7. Гумерова С.\n8. Юсупова М.\n9. Ибатулина Л.\n10. Петренко В.\n11. Чумакова А.\n12. Буглеева В.\n13. Малинина С.\n14. Карсакова Т.\n15. Брекоткина М.\n16. Пузынович А.\n17. Бахтиярова Р.\n18. Сафина А.\n19. Миркасимова А.\n20. Цветкова А.\n21. Нотфуллина А.\n22. Малыгина М.\n23. Газизова М.\n24. Яндуганова Е.\n25. Силантьева Л.\n26. Казаева А. 27. Гаязова А.\n28. Гаязова М. 29. Хайдарова И.\n30. Фролова П. 31. Иделгареева Е.\n32. Гилязов Э. 33. Миронов К.\n34. Неровная К.\n",34,"Хоровое пение","Замилова Луйиза Мегдятовна концертмейстер Алиакберова Алия Ирековна","Диплом лауреата I степени","ГБУ ДПО ИДПО ДШИ 7"]
[null,null,"Средний специальный хор мальчиков \"Эксклюзив\" в составе: 1. Пикушев Д.\n2. Ширеев А.\n3. Фазлыев А.\n4. Лазарев М.\n5. Астапкович И.\n6. Жигалов А.\n7. Пантелеев Н.\n8. Сагидуллин Э.\n 9. Янгиров А.\n 10. Гатауллин Т.\n11. Ханипов Р.\n14. Барыев Б.\n12. Зарифуллин А.\n13. Абдуллаев Б.\n15. Сагидуллин К.\n16. Губайдуллин Р.\n17. Лапицкий Е.\n18. Батаев Д.",18,"Хоровое пение","Тарханова Лилия Михайловна концертмейстер Андрейченко Марина Петровна ","Диплом лауреата I степени","ГБУ ДПО ИДПО ДШИ 7"]
[null,null,"Средний специальный хор мальчиков \"Эксклюзив\" в составе: 1. Пикушев Д.\n2. Ширеев А.\n3. Фазлыев А.\n4. Лазарев М.\n5. Астапкович И.\n6. Жигалов А.\n7. Пантелеев Н.\n8. Сагидуллин Э.\n 9. Янгиров А.\n 10. Гатауллин Т.\n11. Ханипов Р.\n14. Барыев Б.\n12. Зарифуллин А.\n13. Абдуллаев Б.\n15. Сагидуллин К.\n16. Губайдуллин Р.\n17. Лапицкий Е.\n18. Батаев Д.\n",18,"Хоровое пение","Тарханова Лилия Михайловна концертмейстер Андрейченко Марина Петровна ","Специальный диплом \"За лучшее исполнение песни С.В. Плешака\"","ГБУ ДПО ИДПО ДШИ 7"]
[null,null,"Старший общий хор \"Надежда\" в составе:             1. Гоменюк Н.                                       \n2. Зубова Н.                                          \n3. Исмагилова А.                                 \n4. Лагуза М.                                  \n5. Милькова К.                                  \n6. Муллагалиева А.                       \n7. Низамиева Д.                                \n8. Панченко А.                                  \n9. Решитов А.                                  \n10. Солдаткина Р.                        \n11. Хасаншина А.                           \n12. Шаехова М.                                 \n13. Шакиров Р.                                      \n14. Аменова У.\n15. Васюкова Д.\n16. Беспалова К\n17. Вальшин Т.\n18. Гарипова Э.\n19. Исмагилова А.\n20. Мустафин М.\n21. Набиев А. 22. Фаляхов Б.\n23. Хасанова Д. 24. Чалкин М.\n25. Чех К. 26. Шагиев А.\n27. Иванов А. 28. Долганов М.\n29. Мансуров А.                        30. Сулейманова А\n31. Файзуллина З.\n32. Файзуллина Л\n33. Фасхутдинова Б.\n",33,"Хоровое пение","Храмушина Наталья Николаевна                 концертмейстер Козук Ксения Александровна","Диплом лауреата II степени","ГБУ ДПО ИДПО ДШИ 7"]
[null,null,"Старший общий хор \"Радость\" в составе:        1)Андерьянова З. \n2)Валеева А. \n3)Вильданова Р. \n4)Галимарданова Э. \n5) Данилова Д. \n6)Дурманов С.\n7) Емельянова Э. \n8) Закиева К. \n9) Исламова Э. \n10)Леванин Е. \n11)Ломов В. \n12)Мамлеева А. \n13)Марушкина Л.\n14)Нигматуллина Д. \n15)Нигматуллина С. \n16)Самикова Н. \n17)Софронова Н.\n18)Шеламенцева Н.\n19)Шурбина С.\n20)Юсупова К.\n",20,"Хоровое пение","Капустина Анна Михайловна концертмейстер Фролов Владислав Александрович","Диплом лауреата III степени","ГБУ ДПО ИДПО ДШИ 7"]
[null,null,"Средний специальный хор \"Гармония\" в составе:                                 1.Апкова А.\n2. Саматова А.\n3. Долгова В. \n4. Кучина Т.  \n5. Шайхутдинова А. \n6. Аглямова К.\n7. Калимуллина А.\n8. Мардамшина С \n9. Ялалова Р.\n10. Ворошилова Д. \n11. Гайнуллина Л. \n12. Григорьева Р. \n13. Идиятуллина А. \n14. Корнева Н. \n15. Махмутова А. \n16. Насифуллина Д. \n17. Рюмина Н.\n18. ХазиеваАлия \n19. Ялалова Валерия \n20. Гиззатуллина И.\n21. Мингалимова Г.\n22. Мостовая Р.\n23.    Абдуллина Р.\n24.    Аглямова Н.\n25.    Хасаншина Э.\n26.    Хамадаллин А.\n27.    Миргалимова М.\n28.    Сафиуллина К.\n29.    Хайриева Д.\n30.    Баширов С.\n31.    Шамшура М.\n",31,"Хоровое пение","Хуснуллина Альфия Альбертовна концертмейстер Николахина Анна Валерьевна","Диплом лауреата III степени","ГБУ ДПО ИДПО ДШИ 7"]
[null,null,"Средний специальный хор \"Гармония\" в составе:                        1. Апкова А.\n2. Саматова А.\n3. Долгова В. \n4. Кучина Т.  \n5. Шайхутдинова А. \n6. Аглямова К.\n7. Калимуллина А.\n8. Мардамшина С \n9. Ялалова Р.\n10. Ворошилова Д. \n11. Гайнуллина Л. \n12. Григорьева Р. \n13. Идиятуллина А. \n14. Корнева Н. \n15. Махмутова А. \n16. Насифуллина Д. \n17. Рюмина Н.\n18. ХазиеваАлия \n19. Ялалова Валерия \n20. Гиззатуллина И.\n21. Мингалимова Г.\n22. Мостовая Р.\n23.    Абдуллина Р.\n24.    Аглямова Н.\n25.    Хасаншина Э.\n26.    Хамадаллин А.\n27.    Миргалимова М.\n28.    Сафиуллина К.\n29.    Хайриева Д.\n30.    Баширов С.\n31.    Шамшура М.\n",31,"Хоровое пение","Хуснуллина Альфия Альбертовна концертмейстер Николахина Анна Валерьевна","Специальный диплом \"За лучшее исполнение татарской песни\"","ГБУ ДПО ИДПО ДШИ 7"]
[null,null,"Младший специальный хор \"Гармония\" в составе:                                 1. Амитов А.\n2. СабировИ.\n3. Юсупова А.\n4. Гайфутдинова Д.\n5. Хохрева А.\n6. Шайхразиева А.\n7. Аглямов А.\n8. Хасаншин Э.\n9. Бухаров Н.\n10. Ахметзянов Р.\n11. Западнова В.\n12. Мусина А.\n13. Закирова С.\n14. Жаркова А.\n15. Кабирова А.\n16. Кашапова К.\n17. Попова В.\n18. Садыкова Л.\n19. Хамидуллина Д.\n20. Соловьёва К.\n",20,"Хоровое пение","Хуснуллина Альфия Альбертовна концертмейстер Кудзоева Наталья Салатовна","Диплом лауреата III степени","ГБУ ДПО ИДПО ДШИ 7"]
[null,null,"Младший общий хор \"Мелодика\" в составе:       1. Латыпов С.\n2. Садыкова А.\n3. Нестеров С.\n4. Талипова А. \n5. Голобородько Н.\n6. Мунасыпова Р.\n7.      Гареева А.\n8. Гусманова А.\n9. Данилова А.\n10. Зигангирова А.\n11. Мирзагалиева А.\n12. Назмиева А.\n13. Фардиева Д.\n14. Фассахова А.\n15. Михайлова П.\n16. Хаматшина А.\n17. Харисова Э.\n18. Долгова А.\n19. Каранаева А.\n20. Каяшов С. \n21. Латыпова Р.\n22. Фатыхов А.\n23. Мусина А.\n24. Хазиева Р.\n25. Шайхутдинова М.\n26. Бигиев А.\n27. Афанасьев Э.\n28. Газизова Ю.\n29. Догадов М.\n30. Шарифуллин А.\n31. Шарифуллин С.\n32. Гаскаров Д.\n",32,"Хоровое пение","Николаева Ольга Сергеевна концертмейстер Хурматова Альфия Якубовна","Диплом лауреата III степени","ГБУ ДПО ИДПО ДШИ 7"]
[null,null,"Младший общий хор \"Родничок\" в составе:                      1. Алексеенко Н.\n2. Хусаинова Р.\n3. Абросимова Т.\n4. Шигапов И.\n5. Ахмедова Д.\n6. Назипова А.\n7. Гилемханов Т.\n8. Лысенкова Р.\n9. Кушнерев В.\n10. Зиганшина Э.\n11. Сафина А.\n12. Шакиров Р.\n13. Галлиуллин Р.\n14. Чех М. 15. Гусеева А.\n16. Исмагилова М.\n17. Ижотова Д. 18. Клинова Е.\n19. Шевчук К.\n20. Авуева П. 21. Гилязов Р.\n22. Яхина Э.\n23. Файзлыйнурова Э.\n24. Корнилов К. 25. Матросова К.\n26. Нигматуллин Д.\n27. Воркунов С.\n28. Рукавишников А.\n29. Бадертдинов И.\n30. Бикташева Д.\n31. Тухватуллин Б.\n32. Гусманова Д. 33. Галимова Г.\n34. Журавлева К. 35. Казыханова К.\n36. Штукина К. 37. Бойченко С.\n38. Решетова И.\n",38,"Хоровое пение","Колигер Юлия Александровна концертмейстер Фролов Владислав Александрович","Диплом дипломанта","ГБУ ДПО ИДПО ДШИ 7"]
["2018-03-17","VIII Республиканский конкурс-фестиваль детского исполнительства \"Семь нот\" Музыкально-теоретическая олимпиада","Валиева Амалия",1,"Олимпиада","Лотфуллина Лилия Рафисовна","Диплом лауреата I степени","ГБУ ДПО ИДПО ДШИ 7"]
[null,null,"Рамазанова Дарина",1,"Олимпиада","Буркова Любовь Васильевна                       Султанова Рисолат Загитовна","Диплом лауреата I степени","ГБУ ДПО ИДПО ДШИ 7"]
[null,null,"Рамазанова Дарина",1,"Олимпиада","Буркова Любовь Васильевна                       Султанова Рисолат Загитовна","Диплом лауреата I степени","ГБУ ДПО ИДПО ДШИ 7"]
[null,null,"Валиева Амалия",1,"Олимпиада","Лотфуллина Лилия Рафисовна","Диплом лауреата I степени","ГБУ ДПО ИДПО ДШИ 7"]
[null,null,"Васюкова Диана",1,"Олимпиада","Буркова Любовь Васильевна                   Храмушина Наталья Николаевна","Диплом лауреата I степени","ГБУ ДПО ИДПО ДШИ 7"]
[null,null,"Зиганшина Камилла",1,"Олимпиада","Лотфуллина Лилия Рафисовна","Диплом лауреата I степени","ГБУ ДПО ИДПО ДШИ 7"]
[null,null,"Васюкова Диана",1,"Олимпиада","Буркова Любовь Васильевна                   Храмушина Наталья Николаевна","Диплом лауреата II степени","ГБУ ДПО ИДПО ДШИ 7"]
[null,null,"Зиганшина Камилла",1,"Олимпиада","Лотфуллина Лилия Рафисовна","Диплом лауреата III степени","ГБУ ДПО ИДПО ДШИ 7"]
["2018-03-15","II Республиканский конкурс юных исполнителей на народных инструментах","Трио баянистов в составе:                         Хуснуллин Наиль Денизхан Мустафа-Нияз Гилязев Карим",3,"Ансамбли","Шигапова Гульнара Масхудовна","Диплом лауреата I степени","МК РТ, НМК им. С.Сайдашева"]
[null,null,"Дуэт НИ в составе: Зиганшина Камилла Хабибуллин Рамазан",2,"Ансамбли","Семёнова Вероника Михайловна","Диплом лауреата III степени","МК РТ, НМК им. С.Сайдашева"]
["2018-03-17","IX Открытый республиканский конкурс фортепианных ансамблей \"Созвучие\"","Фортепианный ансамбль в составе: Богачева Ульяна Гилязов Эмир",2,"Ансамбли","Ильюшкина Виктория Витальевна","Диплом лауреата II степени","МК РТ Республиканский МЦ"]
[null,null,"Фортепианный ансамбль в составе: Татаренкова Янина Казаева Александра",3,"Ансамбли","Ильюшкина Виктория Витальевна","Диплом участника","МК РТ Республиканский МЦ"]
["27-28.03.2018","Открытый республтканский конкурс татарского искусства \"Моң чишмасә\"","Исакова Анастасия",1,"скрипка","Хаметшина Ольга Викторовна конөертмейстер Алиакберова Алия Ирековна","Диплом лауреата I степени","ГБУ ДПО ИДПО ДШИ 13"]
[null,null,"Анасмбль НИ в составе: Зиганшина Камила Хабибуллин Рамазан",2,"Ансамбли","Семёнова Вероника Михайловна","Диплом лауреата I степени","ГБУ ДПО ИДПО ДШИ 13"]
[null,null,"Зиганшина Камилла",1,"домра","Девяшина Элла Юрьевна концертмейстер Николахина Анна Валерьевна","Диплом лауреата I степени","ГБУ ДПО ИДПО ДШИ 13"]
[null,null,"Габдрахманов Айнур",1,"баян","Шигапова Гульнара Масхудовна","Диплом лауреата I степени","ГБУ ДПО ИДПО ДШИ 13"]
[null,null,"Фортепианный дуэт в составе:                                  Хайриева Джамиля Апакова Алина",2,"Общее фортепиано","Журавлёва Рамзия Нагимовна                      Титова Ирина Николаевна","Диплом лауреата I степени","ГБУ ДПО ИДПО ДШИ 13"]
[null,null,"Богачева Ульяна",1,"Фортепиано","Ильюшкина Виктория Витальевна","Диплом лауреата I степени","ГБУ ДПО ИДПО ДШИ 13"]
[null,null,"Абдуллина Ралина",1,"Академическое пение","Ситдикова Ольга Анатольевна концертмейстер Николахина Анна Валерьевна","Диплом лауреата I степени ","ГБУ ДПО ИДПО ДШИ 13"]
[null,null,"Муртазин Булат",1,"Общее фортепиано","Кольцова Елена Сергеевна","Диплом лауреата I степени ","ГБУ ДПО ИДПО ДШИ 13"]
[null,null,"Фортепианный дуэт в составе: Хайриева Джамиля Апакова Алина",2,null,"Журавлёва Рамзия Нагимовна                             Титова Ирина Николаевна","Диплом лауреата I степени ","ГБУ ДПО ИДПО ДШИ 13"]
[null,null,"Театральный коллектив \"Балачак\" в составе:           1. Бакиров З. \n2. Галиахметова А. \n3. Гарифуллина Э. \n4. Зарипова М. \n5. Зиатдинова И. \n6. Исламгараева  А. \n7. Исмагилова З. \n8. Минаков И. \n9. Минакова Г. \n10. Петрова А. \n11. Сибгатуллина А. \n12. Фаттахова А. \n13. Хабибрахманова Э. \n14. Хакимова Л. \n15. Хуснимарданов И. \n16. Шакурова Р. \n17. Шамсутдинова А. \n",17,"Театральное мастерство","Ибрагимова Василя Раифовна Мингазова Ильзина Индусовна","Диплом лауреата II степени ","ГБУ ДПО ИДПО ДШИ 13"]
[null,null,"Басыров Нияз",1,"баян                   ","Семёнова Вероника Михайловна","Диплом лауреата II степени ","ГБУ ДПО ИДПО ДШИ 13"]
[null,null,"Гиздатуллина Самира",1,"фортепиано","Луговая Татьяна Геннадьевна","Диплом лауреата II степени ","ГБУ ДПО ИДПО ДШИ 13"]
[null,null,"Гилязов Эмир",1,"фортепиано","Ильюшкина Виктория Витальевна","Диплом лауреата II степени ","ГБУ ДПО ИДПО ДШИ 13"]
[null,null,"Гилязов Эмир",1,"фортепиано","Хаметшина Ольга Викторовна концертмейстер Алиакберова Алия Ирековна","Диплом лауреата II степени ","ГБУ ДПО ИДПО ДШИ 13"]
[null,null,"Махянова Ландыш",1,"скрипка","Хаметшина Ольга Викторовна концертмейстер Алиакберова Алия Ирековна","Диплом лауреата II степени ","ГБУ ДПО ИДПО ДШИ 13"]
[null,null,"Мурадымова Алина",1,"Академическое пение","Суходольская Рузалия Салиховна концертмейстер Латыпова Анастасия Тагирзяновна","Диплом лауреата II степени ","ГБУ ДПО ИДПО ДШИ 13"]
[null,null,"Фортепианный дуэт в составе: Насифуллина Диляра, Махмутова Амина",2,"Общее фортепиано","Журавлёва Рамзия Нагимовна","Диплом лауреата II степени ","ГБУ ДПО ИДПО ДШИ 13"]
[null,null,"Хабибуллин Рамазан ",1,"баян","Семёнова Вероника Михайловна","Диплом лауреата II степени ","ГБУ ДПО ИДПО ДШИ 13"]
[null,null,"Неровная Кира",1,"фортепиано","Кольцова Елена Сергеевна","Диплом лауреата II степени ","ГБУ ДПО ИДПО ДШИ 13"]
[null,null,"Хайруллин Тимур",1,"баян","Минигалеева Гульнара Вильдановна","Диплом лауреата II степени ","ГБУ ДПО ИДПО ДШИ 13"]
[null,null,"Шигапов Данир",1,"баян","Семёнова Вероника Михайловна","Диплом лауреата II степени ","ГБУ ДПО ИДПО ДШИ 13"]
[null,null,"Гилемханов Тагир",1,"баян","Сафин Ирек Мансурович","Диплом лауреата III степени ","ГБУ ДПО ИДПО ДШИ 13"]
[null,null,"Зигангирова Алина",1,"Академическое пение","Знатина Ульяна Юрьевна концертмейстер Фролов Владислав Александрович","Диплом лауреата III степени ","ГБУ ДПО ИДПО ДШИ 13"]
[null,null,"Иделгариева Елизавета",1,"скрипка","Хаметшина Ольга Викторовна концертмейстер Алиакберова Алия Ирековна","Диплом лауреата III степени ","ГБУ ДПО ИДПО ДШИ 13"]
[null,null,"Милькова Карина",1,"фортепиано","Кольцова Елена Сергеевна","Диплом лауреата III степени ","ГБУ ДПО ИДПО ДШИ 13"]
[null,null,"Силантьева Лия",1,"фортепиано","Луговая Татьяна Геннадьевна","Диплом лауреата III степени ","ГБУ ДПО ИДПО ДШИ 13"]
[null,null,"Фаляхов Булат",1,"домра","Ларионова Оксана Михайловна концертмейстер Фролов Владислав Александрович","Диплом лауреата III степени ","ГБУ ДПО ИДПО ДШИ 13"]
[null,null,"Зарифуллин Артур",1,"аккордеон","Семёнова Вероника Михайловна","Диплом I степени ","ГБУ ДПО ИДПО ДШИ 13"]
[null,null,"Курбанова Малика",1,"фортепиано","Луговая Татьяна Геннадьевна","Диплом I степени ","ГБУ ДПО ИДПО ДШИ 13"]
[null,null,"Фролова Полина",1,"фортепиано","Луговая Татьяна Геннадьевна","Диплом I степени ","ГБУ ДПО ИДПО ДШИ 13"]
[null,null,"Хайруллина Азалия",1,"аккордеон","Семёнова Вероника Михайловна","Диплом I степени ","ГБУ ДПО ИДПО ДШИ 13"]
[null,null,"Гильманова Камиля",1,"Академическое пение","Николаева Ольга Сергеевна концертмейстер Кудзоева Наталья Салатовна","Диплом II степени ","ГБУ ДПО ИДПО ДШИ 13"]
[null,null,"Максимов Иван",1,"фортепиано","Луговая Татьяна Геннадьевна","Диплом III степени ","ГБУ ДПО ИДПО ДШИ 13"]
["14-20.04.2018","XVII Республиканский телевизионный конкурс \"Созвездие-Йолдызлык\" Республиканский этап","Шагиева Полина",1,"клип","Колтунова Татьяна Николаевна","Диплом лауреата I степени","МОиН РТ, МК РТ"]
[null,null,"Вокальный ансамбль \"Колибри\" в составе: Куркина Елизавета Имамова Эмилия Несветаева Ольга Ахметшина Диана",4,"Эстрадный вокал","Колтунова Татьяна Николаевна","Диплом лауреата II степени","МОиН РТ, МК РТ"]
[null,null,"Кобахидзе Медея",1,"Эстрадный вокал","Колтунова Татьяна Николаевна","Диплом лауреата II степени","МОиН РТ, МК РТ"]
[null,null,"Яфясова Азалия",1,"Эстрадный вокал","Хоини Рима Илдусовна","Диплом лауреата III степени","МОиН РТ, МК РТ"]
[null,null,"Несветаева Ольга",1,"Эстрадный вокал","Колтунова Татьяна Николаевна","Дипломант","МОиН РТ, МК РТ"]
["2018-04-06","Зональный этап республиканского конкурса детского народного творчества \"Без бергэ\"","Ансамбль НИ \"Калинка\" в составе:                      1. Петрова Полина  \n2. Хохрева Яна                   \n3. Толпеева Даша              \n4. Хасанова Алия               \n5. Зиганшина Камилла \n6. Хабибуллин Рамазан \n7. Данилов Арсений          \n8. Забиров Адель               \n9. Хуснуллин Наиль \n10. Бигиева Арина  \n11. Гилязев Карим  \n12. Денизхан Мустафа \n13. Колчерин Костя \n\n",13,"Ансамбли народных инструментов","Семёнова Вероника Михайловна Шигапова Гульнара Масхудовна","Диплом участника","МОиН РТ, РЦВР"]
[null,null,"Несветаева Ольга",1,"Народный вокал","Колтунова Татьяна Николаевна","Диплом участника"]
[null,null,"Вокальный ансамбль \"Колибри\" в составе:                               Куркина Елизавета Имамова Эмилия Несветаева Ольга Ахметшина Диана",4,"Народный вокал","Колтунова Татьяна Николаевна","Диплом участника"]
["2018-05-18","Финал республиканского конкурса детского народного творчества                                       \"Без бергэ\"","Ансамбль НИ \"Калинка\" в составе:                      1. Петрова Полина  \n2. Хохрева Яна                   \n3. Толпеева Даша              \n4. Хасанова Алия               \n5. Зиганшина Камилла \n6. Хабибуллин Рамазан \n7. Данилов Арсений          \n8. Забиров Адель               \n9. Хуснуллин Наиль \n10. Бигиева Арина  \n11. Гилязев Карим  \n12. Денизхан Мустафа \n13. Колчерин Костя \n\n",13,"Ансамбли народных инструментов","Семёнова Вероника Михайловна Шигапова Гульнара Масхудовна","Гран При","МОиН РТ"]
["2018-05-18","Финал республиканского конкурса детского народного творчества                                       \"Без бергэ\"","Несветаева Ольга",1,"Народный вокал","Колтунова Татьяна Николаевна","Диплом Гран ПРИ","МОиН РТ"]
["2018-05-18","Финал республиканского конкурса детского народного творчества                                       \"Без бергэ\"","Вокальный ансамбль \"Колибри\" в составе:                               Куркина Елизавета Имамова Эмилия Несветаева Ольга Ахметшина Диана                           Жданов Салават                           Ногуманов Игорь                    Шагиева Полина                      Малыгина Мария                        Черных Данил                      Ризатдинов Тимур",11,"Народный вокал","Колтунова Татьяна Николаевна","Диплом лауреата                      I степени","МОиН РТ",null,"жю"]
["2018-03-24","VIII Республиканский фестиваль хореографического искусства \"Танцевальная карусель\"","Ансамбль \"Вдохновение\" в составе:                                    1.  Нугуманова Алия\n2.  Нугуманова Эльвина\n3.  Муллахметова Эльвина\n4.  Петрова Вероника\n5.  Талипова Арина\n6.  Сабирзянова Сабина\n7.  Усанова Дарья\n8.  Шагалина Евгения\n\n",8,"Разыгрались на полянке","Петрова Лидия Ивановна концертмейстер                    Алексеева Наиля Азатовна","Диплом лауреата                      I степени","ИМЦ ДШХ №3"]
[null,null,"Ансамбль \"Вдохновение\"                        в составе:                      1.  Анкудинова Анна\n2.  Докучаева Вероника\n3.  Карсакова Полина\n4.  Ковальчук Любовь\n5.  Мусина Диана\n6.  Ситдикова Аделина\n7.  Салмиянова Ксения\n8.  Таранец Виктория\n9.  Шматыгина Ксения\n",9,"Весёлый этюд","Панкова Наталья Владимировна концертмейстер Латыпова Анастасия Тагирзяновна","Диплом лауреата                      I степени","ИМЦ ДШХ №3"]
[null,null,"Ансамбль \"Вдохновение\"                              в составе:                     Усанова Дарья Нугуманова Эльвина",2,"Райские птицы","Панкова Наталья Владимировна концертмейстер Латыпова Анастасия Тагирзяновна","Диплом лауреата                      II степени","ИМЦ ДШХ №3"]
[null,null,"Ансамбль \"Вдохновение\" в составе:                                       1.  Белоногова Мирослава\n2.  Гатина Диля\n3.  Гареева София\n4.  Козлова Анастасия\n5.  Липатова Диана\n6.  Логинова Александра\n7.  Махмудова Алина \n8.  Рыбюк Екатерина\n9.  Ульданова Сабина\n10. Шарафисламова Софья\n\n",10,"Кумушки","Панкова Наталья Владимировна концертмейстер Латыпова Анастасия Тагирзяновна","Диплом лауреата                      II степени","ИМЦ ДШХ №3"]
[null,null,"Ансамбль \"Вдохновение\" в составе:                                1. Биктимирова Алина\n2. Макарова Лена\n3. Мошкова Яна\n4. Прокопьева Злата\n5. Юсупова Ильфира\n6. Прошунина Саша\n7. Кудряшова Арина\n\n",7,"Барыня","Петрова Лидия Ивановна концертмейстер                    Алексеева Наиля Азатовна","Диплом лауреата                      III степени","ИМЦ ДШХ №3"]
[null,null,"Ансамбль \"Вдохновение\" в составе:                                1.  Арсланова Айсылу\n2.  Варламова Полина\n3.  Губайдуллина Ралина\n4.  Егорова Кира\n5.  Зарудна Василиса\n6.  Зиганшина Залина\n7.  Невенчанная Вика\n8.  Плаксимова Аделя\n9.  Сабитова Айсылу\n10. Смирнова Вика\n11. Хаирова Алия\n12. Ребгун Вера\n13. Хамадьярова Ралина\n14. Краснова Милана\n15. Шангараева Зарина\n16. Ташдемир Аиша  \n\n\n",16,"Родные узоры","Панкова Наталья Владимировна концертмейстер Латыпова Анастасия Тагирзяновна","Диплом лауреата                      III степени","ИМЦ ДШХ №3"]
[null,null,"Ансамбль \"Вдохновение\" в составе:                                1.  Аменова Азалия\n2.  Мухаметханова Эльвира\n3.  Нам Алина\n4.  Прокофьева Аня\n5.  Кондратьева Александра\n6.  Зарипова Зухра\n7.  Ильина Лиза\n8.  Ложкина Евгения\n9.  Кулыгина Полина\n10. Хаматдинова Диана\n\n\n",10,"Большая стирка","Петрова Лидия Ивановна концертмейстер                    Алексеева Наиля Азатовна","Диплом лауреата                      III степени","ИМЦ ДШХ №3"]
["2018-03-31","Открытый республиканский конкурс \"Алло, мы ищем таланты\" г. Елабуга","Саламатова Екатерина",1,"Специальное фортепиано","Луговая Татьяна Геннадьевна","Диплом Гран ПРИ","МК РТ Елабужский колледж культуры и искусства"]
[null,null,"Богомолова Любовь",1,"Специальное фортепиано","Рассказова Лариса Григорьевна","Диплом лауреата                      II степени"]
[null,null,"Мандзюк Вероника",1,"Специальное фортепиано","Луговая Татьяна Геннадьевна","Диплом лауреата                      II степени"]
[null,null,"Хореографический ансамбль \"Вдохновение\" в составе:                                        1.  Аменова Азалия\n2.  Мухаметханова Эльвира\n3.  Нам Алина\n4.  Прокофьева Аня\n5.  Кондратьева Александра\n6.  Зарипова Зухра\n7.  Ильина Лиза\n8.  Ложкина Евгения\n9.  Кулыгина Полина\n10. Хаматдинова Диана\n",10,"Большая стирка","Петрова Лидия Ивановна концертмейстер                    Алексеева Наиля Азатовна","Диплом лауреата                      III степени"]
[null,null,"Хореографический ансамбль \"Вдохновение\" в составе:                                         1.  Аменова Азалия\n2.  Мухаметханова Эльвира\n3.  Нам Алина\n4.  Прокофьева Аня\n5.  Кондратьева Александра\n6.  Зарипова Зухра\n7.  Ильина Лиза\n8.  Ложкина Евгения\n9.  Кулыгина Полина\n10. Хаматдинова Диана\n",10,"Маки","Реддер Галина Леонидовна концертмейстер Савастьянова Наталья Николаевна","Дипломант"]
["2018-03-25","XI Республиканский  конкурс музыки и искусств среди детей с ограниченными возможностями здоровья \"Мы всё можем\"","Патракова Елизавета",1,"инструментальная музыка","Садыкова Татьяна Владимировна","Диплом лауреата                      I степени","УОиДМ             УВО ТИСБИ ГДТДиМ №1 "]
[null,null,"Саитова Регина",1,"инструментальная музыка","Садыкова Татьяна Владимировна","Диплом лауреата                      II степени"]
[null,null,"Сафина Эленна",1,"инструментальная музыка","Садыкова Татьяна Владимировна","Диплом лауреата                      III степени"]
[null,null,"Смирнов Даниил",1,"инструментальная музыка","Садыкова Татьяна Владимировна","Диплом лауреата                      III степени"]

{"sheet":"Региональные","index":3,"n_rows":73,"n_cols":8,"rows_kept":73,"merged":[[0,0,0,7],[3,0,10,0],[3,1,10,1],[3,7,10,7],[11,0,14,0],[11,1,14,1],[11,7,14,7],[15,0,22,0],[15,1,22,1],[15,7,22,7],[23,0,25,0],[23,1,25,1],[26,0,46,0],[26,1,46,1],[26,7,46,7],[47,0,53,0],[47,1,53,1],[54,0,59,0],[54,1,59,1],[60,0,61,0],[60,1,61,1],[63,0,68,0],[63,1,68,1]]}
["ИТОГИ\nучастия учащихся Детской школы искусств №7 в региональных конкурсах                                                                                       за 2017-2018 учебный год\n"]
["Дата","Уровень и название конкурса","Ф.И.О. учащегося","Кол-во учащихся","Номинация, возрастная группа","Ф.И.О. преподавателя","Достижение","Организатор конкурса"]
["2017-10-01","Региональный фестиваль татарского искусства \"Халкым чишмасе\"","Хореографический ансамбль \"Вдохновение\" в составе:                                1. Биктимирова Алина\n2. Макарова Лена\n3. Мошкова Яна\n4. Прокопьева Злата\n5. Юсупова Ильфира\n",5,"хореография","Петрова Лидия Ивановна концертмейстер Алекусеева Наиля Азатовна","Диплом                        лауреата II степени","УОиДМ, МАУ \"Шатлык\""]
["2017-12-09","III Региональный открытый конкурс исполнителей на баяне и аккордеоне «Головокружительный аккордеон»","Габдрахманов Айнур",1,"баян","Шигапова Гульнара Масхудовна","Диплом                        лауреата I степени","Министерство культуры РТ ГАПОУ \"Набережночелнинский колледж искусств\""]
[null,null,"Хабибуллин Рамазан",1,"баян","Семёнова Вероника Михайловна","Диплом                        лауреата I степени"]
[null,null,"Хуснуллин Наиль",1,"баян","Шигапова Гульнара Масхудовна","Диплом                        лауреата II степени"]
[null,null,"Гилязев Карим",1,"баян","Шигапова Гульнара Масхудовна","Диплом                        лауреата III степени"]
[null,null,"Хасанова Алия",1,"баян","Минигалеева Гульнара Вильдановна","Диплом                        лауреата III степени"]
[null,null,"Самаркин Илья",1,"баян","Губеев Халиль Хамитович","Диплом                        лауреата III степени"]
[null,null,"Хайруллина Азалия ",1,"аккордеон","Семёнова Вероника Михайловна","Дипломант"]
[null,null,"Хайруллин Тимур",1,"баян","Семёнова Вероника Михайловна","Дипломант"]
["2017-11-01","I Межрегиональный конкурс пианистов \"Посвящение\" имени Луизы Климовой","Фортепианный дуэт в составе:                     Богачева Ульяна Ильюшкина В.В.",1,"фортепиано","Ильюшкина Виктория Витальевна","Диплом                        лауреата II степени","УК, ДМШ №2"]
[null,null,"Фортепианный дуэт в составе:                     Солдаткина Русалина Зубова Николь",1,"фортепиано","Рудзит Лариса Викторовна","Диплом                        лауреата II степени"]
[null,null,"Малинина София",1,"фортепиано","Рассказова Лариса Григорьевна","Диплом                        I степени"]
[null,null,"Фазлыйнурова Элина",1,"фортепиано","Рудзит Лариса Викторовна","Диплом                        II степени"]
["2017-12-16","III Открытый региональный конкурс исполнителей на домре \"Сударыня домра\"","Ханова Нурия",1,"домра","Девяшина Элла Юрьевна концертмейстер Николахина Анна Валерьевна","Диплом                        лауреата II степени","Министерство культуры РТ ГАПОУ \"Набережночелнинский колледж искусств\""]
[null,null,"Силантьева Майя",1,"домра","Девяшина Элла Юрьевна концертмейстер Николахина Анна Валерьевна","Диплом                        лауреата II степени"]
[null,null,"Зиганшина Камилла",1,"домра","Девяшина Элла Юрьевна концертмейстер Николахина Анна Валерьевна","Диплом                        лауреата III степени"]
[null,null,"Иванова Анастасия",1,"домра","Девяшина Элла Юрьевна концертмейстер Николахина Анна Валерьевна","Диплом                        лауреата III степени"]
[null,null,"Савельева Алиса",1,"домра","Галина Резеда Радиковна концертмейстер Помазкина Людмила Лукьяновна","Диплом                        лауреата III степени"]
[null,null,"Молчанова Карина",1,"домра","Ларионова Оксана Михайловна концертмейстер Алексеева Наиля Азатовна","Диплом                        лауреата III степени"]
[null,null,"Карямова Миляуша",1,"домра","Ларионова Оксана Михайловна концертмейстер Алексеева Наиля Азатовна","Диплом                        лауреата III степени"]
[null,null,"Билалова Энже",1,"домра","Галина Резеда Радиковна концертмейстер Помазкина Людмила Лукьяновна","Дипломант"]
["2018-01-27","Региональный конкурс солистов хореографического искусства \"Жемчужина\"","Усанова Дарья Нугуманова Эльвина",2,"хореография","Панкова Наталья Владимировна концертмейстер Латыпова Анастасия Тагирзяновна","Диплом                        лауреата II степени","МБУ ИМЦ МАУ ДО \"ДШХИ №17\""]
[null,null,"Ансамбль \"Вдохновение\" в составе:                          Прошунина Александра, Прошунина Валерия Макарова Елена                 Юсупова Ильфира ",4,"хореография","Реддер Галина Леонидовна концертмейстер Савастьянова Наталья Николаевна","Диплом                        I степени","МБУ ИМЦ МАУ ДО \"ДШХИ №17\""]
[null,null,"Ансамбль \"Вдохновение\" в составе:                          Мошкова Яна                  Прокопьева Злата Макарова Елена Биктимирова Алина Юсупова Ильфира",5,"хореография","Петрова Лидия Ивановна концертмейстер Алекусеева Наиля Азатовна","Диплом                        участника","МБУ ИМЦ МАУ ДО \"ДШХИ №17\""]
["2018-02-06","Открытый региональный конкурс юных исполнителей \"Первые шаги\"","Ансамбль \"Колибри\" в составе:                             1. Несветаева Ольга                         2. Куркина Елизавета 3.Имамова Эмилия 4.Ахметшина Диана 5.Малыгина Мария  6.Шагиева Полина 7.Ризатдинов Тимур            8.Черных Данил            9.Ногуманов Игорь 10.Жданов Салават 11.Равзетдинов Камиль",11,"Вокальное исполнение","Колтунова Татьяна Николаевна","Диплом                        лауреата I степени","МБУ ИМЦ МАУ ДО \"ГДТДиМ №1\""]
[null,null,"Куркина Елизавета ",1,"Вокальное исполнение","Колтунова Татьяна Николаевна","Диплом                        лауреата I степени"]
[null,null,"Шагиева Полина",1,"Вокальное исполнение","Колтунова Татьяна Николаевна","Диплом                        лауреата I степени"]
[null,null,"Дуэт в составе: Имамова Эмилия, Куркина Елизавета",2,"Вокальное исполнение","Колтунова Татьяна Николаевна","Диплом                        лауреата I степени"]
[null,null,"Ансамбль \"Колибри\" в составе:                             Куркина Елизавета, Имамова Эмилия, Несветаева Ольга, Ахметшина Диана",4,"Вокальное исполнение","Колтунова Татьяна Николаевна","Диплом                        лауреата I степени"]
[null,null,"Имамова Эмилия  ",1,"Вокальное исполнение","Колтунова Татьяна Николаевна","Диплом                        лауреата II степени"]
[null,null,"Дуэт в составе: Шагиева Полина Малыгина Мария",2,"Вокальное исполнение","Колтунова Татьяна Николаевна","Диплом                        лауреата II степени"]
[null,null,"Хореографический ансамбль \"Вдохновение\" в составе:                               1.  Анкудинова Анна\n2.  Докучаева Вероника\n3.  Карсакова Полина\n4.  Ковальчук Любовь\n5.  Мусина Диана\n6.  Ситдикова Аделина\n7.  Салмиянова Ксения\n8.  Таранец Виктория\n9.  Шматыгина Ксения\n                                \n",9,"Хореография \"Весёлый этюд\"","Панкова Наталья Владимировна концертмейстер Латыпова Анастасия Тагирзяновна","Диплом                        лауреата II степени"]
[null,null,"Несветаева Ольга",1,"Вокальное исполнение","Колтунова Татьяна Николаевна","Диплом                        лауреата II степени"]
[null,null,"Хореографический дуэт в составе: Усанова Дарья, Нугуманова Эльвина ",2,"хореография","Панкова Наталья Владимировна концертмейстер Латыпова Анастасия Тагирзяновна","Диплом                        лауреата II степени"]
[null,null,"Малыгина Мария",1,"Вокальное исполнение","Колтунова Татьяна Николаевна","Диплом                        лауреата III степени"]
[null,null,"Равзетдинов Камиль",1,"Вокальное исполнение","Колтунова Татьяна Николаевна","Диплом                        I степени"]
[null,null,"Хореографический ансамбль \"Вдохновение\" в составе:                                      1.  Белоногова Мирослава\n2.  Гатина Диля\n3.  Гареева София\n4.  Козлова Анастасия\n5.  Липатова Диана\n6.  Логинова Александра\n7.  Махмудова Алина \n8.  Рыбюк Екатерина\n9.  Ульданова Сабина\n10. Шарафисламова Софья\n                              \n",10,"Хореография \"Кумушки\"","Панкова Наталья Владимировна концертмейстер Латыпова Анастасия Тагирзяновна","Диплом                        I степени"]
[null,null,"Вокальный дуэт в составе:                         Салихова Эльвина Имамов Самат",2,"Вокальное исполнение","Колтунова Татьяна Николаевна","Диплом                        II степени"]
[null,null,"Ахметшин Булат",1,"Вокальное исполнение","Колтунова Татьяна Николаевна","Диплом                        II степени"]
[null,null,"Хореографический ансамбль \"Вдохновение\" в составе:                                1.  Азаревич Кристина\n2.  Баталова Алексия\n3.  Галимова Ясмина\n4.  Галина Ралина\n5.  Краснова Милана\n6.  Курбанова Малика\n7.  Лопаева Вероника\n8.  Мухутдинова Амина\n9.  Сабирова Алия\n10. Тарабухина Румия\n11. Шангараева Зарина\n12. Язитова Амина\n                               \n",12,"хореография Паровозик-букашка","Панкова Наталья Владимировна концертмейстер Латыпова Анастасия Тагирзяновна","Диплом                        II степени"]
[null,null,"Усанова Дарья",1,"Хореография","Панкова Наталья Владимировна концертмейстер Латыпова Анастасия Тагирзяновна","Диплом                        II степени"]
[null,null,"Салихова Эльвина",1,"Вокальное исполнение","Колтунова Татьяна Николаевна","Диплом                        II степени"]
[null,null,"Имамов Самат",1,"Вокальное исполнение","Колтунова Татьяна Николаевна","Диплом                        II степени"]
[null,null,"Гареева Арина",1,"Вокальное исполнение","Колтунова Татьяна Николаевна","Диплом                        III степени"]
[null,null,"Хисамова Розалина",1,"Вокальное исполнение","Колтунова Татьяна Николаевна","Диплом                        участника"]
["февраль 2018","Региональный патриотический фестиваль творчества \"Славься Отечество - 2017\"","Несветаева Ольга",1,"Вокальное исполнение","Колтунова Татьяна Николаевна","Диплом                        лауреата I степени","УК, ДК КАМАЗ"]
[null,null,"Кобахидзе Медея",1,"Вокальное исполнение","Колтунова Татьяна Николаевна","Диплом                        лауреата I степени"]
[null,null,"Вокальный ансамбль \"Колибри\" в составе:             1. Несветаева Ольга                         2. Куркина Елизавета 3.Имамова Эмилия 4.Ахметшина Диана 5.Малыгина Мария  6.Шагиева Полина 7.Ризатдинов Тимур            8.Черных Данил            9.Ногуманов Игорь 10.Жданов Салават 11.Равзетдинов Камиль              ",11,"Вокальное исполнение","Колтунова Татьяна Николаевна","Диплом                        лауреата I степени","УК, ДК КАМАЗ"]
[null,null,"Петухова Милана",1,"Вокальное исполнение","Колтунова Татьяна Николаевна","Диплом                        лауреата I степени","УК, ДК КАМАЗ"]
[null,null,"Ногуманов Игорь",1,"Вокальное исполнение","Колтунова Татьяна Николаевна","Диплом                        лауреата II степени","УК, ДК КАМАЗ"]
[null,null,"Вокальный ансамбль \"Колибри\" в составе:             1. Несветаева Ольга                         2. Куркина Елизавета 3.Имамова Эмилия 4.Ахметшина Диана ",4,"Вокальное исполнение","Колтунова Татьяна Николаевна","Диплом                        лауреата II степени","УК, ДК КАМАЗ"]
[null,null,"Малыгина Мария",1,"Вокальное исполнение","Колтунова Татьяна Николаевна","Диплом                        лауреата III степени","УК, ДК КАМАЗ"]
["10.02.2017","Региональный конкурс мультимедийных презентаций \"175 лет Э.Григу\"","Батяева Диана              Батяева Елизавета",2,"Презентация","Буркова Любовь Васильевна","Диплом                        лауреата I степени","ИМЦ, ДШИ №13(т.)"]
[null,null,"Догадов Михаил",1,"Презентация","Ситдикова Ольга Анатольевна ","Диплом                        лауреата I степени","ИМЦ, ДШИ №13(т.)"]
[null,null,"Валиева Амалия",1,null,"Лотфуллина Лилия Рафисовна                     Журавлёва Рамзия Нагимовна","Диплом                        лауреата I степени","ИМЦ, ДШИ №13(т.)"]
[null,null,"Сулейманова Аделя",1,"Презентация","Рудзит Лариса Викторовна","Диплом                        лауреата III степени","ИМЦ, ДШИ №13(т.)"]
[null,null,"Жук Алексей",1,"Презентация","Хаметшина Ольга Викторовна","Диплом                        лауреата III степени","ИМЦ, ДШИ №13(т.)"]
[null,null,"Шамшура Михаил",1,"Презентация","Мухаметшина Венера Робесовна","Диплом                        участника","ИМЦ, ДШИ №13(т.)"]
["февраль 2018","Региональный конкурс театрального искусства \"Сәхнә көзгесе\"","Театральный коллектив \"Балачак\" в составе:                         1. Бакиров З. \n2. Галиахметова А. \n3. Гарифуллина Э. \n4. Зарипова М. \n5. Зиатдинова И. \n6. Исламгараева  А. \n7. Исмагилова З. \n8. Минаков И. \n9. Минакова Г. \n10. Петрова А. \n11. Сибгатуллина А. \n12. Фаттахова А. \n13. Хабибрахманова Э. \n14. Хакимова Л. \n15. Хуснимарданов И. \n16. Шакурова Р. \n17. Шамсутдинова А. \n",17,"Театральная постановка","Ибрагимова Василя Раифовна                       Мингазова Ильзина Индусовна","Диплом                        лауреата I степени","ИМЦ, ГДТДиМ "]
[null,null,"Театральный коллектив \"Балачак\" в составе:                         1. Бакиров З. \n2. Галиахметова А. \n3. Гарифуллина Э. \n4. Зарипова М. \n5. Зиатдинова И. \n6. Исламгараева  А. \n7. Исмагилова З. \n8. Минаков И. \n9. Минакова Г. \n10. Петрова А. \n11. Сибгатуллина А. \n12. Фаттахова А. \n13. Хабибрахманова Э. \n14. Хакимова Л. \n15. Хуснимарданов И. \n16. Шакурова Р. \n17. Шамсутдинова А. \n",17,"Театральная постановка","Ибрагимова Василя Раифовна                       Мингазова Ильзина Индусовна","Диплом                        лауреата II степени"]
["2018-03-31","Открытый межрегиональный конкурс татарской песни \"Уральский соловей\"                        г. Екатеринбург","Яфясова Азалия",1,"Вокальное исполнение","Хоини Рима Илдусовна","Диплом                        лауреата II степени"]
["2018-04-14","XIV Региональный фестиваль-конкурс эстрадного искусства \"Колибри\"","Хореографический ансамбль \"Вдохновение\" в составе:                                              1.  Анкудинова Анна\n2.  Докучаева Вероника\n3.  Карсакова Полина\n4.  Ковальчук Любовь\n5.  Мусина Диана\n6.  Ситдикова Аделина\n7.  Салмиянова Ксения\n8.  Таранец Виктория\n9.  Шматыгина Ксения",10,"Хореография","Панкова Наталья Владимировна концертмейстер Латыпова Анастасия Тагирзяновна","Диплом                        лауреата I степени"]
[null,null,"Малыгина Мария",1,"Эстрадный вокал","Колтунова Татьяна Николаевна","Диплом                        лауреата I степени"]
[null,null,"Вокальный дуэт в составе:                         Малыгина Мария Шагиева Полина",2,"Вокальный ансамбль","Колтунова Татьяна Николаевна","Диплом                        лауреата II степени"]
[null,null,"Шагиева Полина",1,"Эстрадный вокал","Колтунова Татьяна Николаевна","Диплом                        лауреата II степени"]
[null,null,"Вилданова Амалия",1,"Эстрадный вокал","Тарханова Лилия Михайловна","Диплом                        лауреата II степени"]
[null,null,"Хасанова Айсылу",1,"Эстрадный вокал","Хоини Рима Илдусовна","Диплом                   II степени"]
["2018-05-08","Региональный конкурс любительского творчества \"Свободная сцена-2018\"","Вилданова Амалия",1,"Эстрадный вокал","Тарханова Лилия Михайловна","Диплом                        лауреата I степени","УК"]
["2018-04-28","Открытый региональный конкурс фортепианных ансамблей им. Хайдаровой,                                   г. Октябрьский","Фортепианный дуэт в составе: Богачева Ульяна, Гилязов Эмир",2,"фортепиано","Ильюшкина Виктория Витальевна","Диплом                        лауреата II степени","МК РБ"]
["2018-04-28","Открытый региональный конкурс фортепианных ансамблей им. Хайдаровой,                                   г. Октябрьский","Фортепианный дуэт в составе: Казаева Александра, Татаренкова Янина",2,"фортепиано","Ильюшкина Виктория Витальевна","Диплом                        лауреата III степени"]
["2018-04-28","Открытый региональный конкурс фортепианных ансамблей им. Хайдаровой,                                   г. Октябрьский","Фортепианный дуэт в составе: Солдаткина Русалина, Зубова Николь",2,"фортепиано","Рудзит Лариса Викторовна","Диплом                        лауреата III степени"]

{"sheet":"Муниципальные","index":4,"n_rows":59,"n_cols":9,"rows_kept":59,"merged":[[0,0,0,7],[2,0,8,0],[2,1,8,1],[2,7,8,7],[9,0,18,0],[9,1,18,1],[9,7,18,7],[19,0,22,0],[19,1,22,1],[19,7,22,7],[23,0,24,0],[23,1,24,1],[23,7,24,7],[25,0,28,0],[25,1,28,1],[25,7,28,7],[29,0,34,0],[29,1,34,1],[29,7,34,7],[38,0,45,0],[38,1,45,1],[46,0,53,0],[46,1,53,1],[46,7,53,7],[54,0,56,0],[54,1,56,1],[55,5,56,5],[55,7,56,7],[57,0,58,0],[57,1,58,1],[57,7,58,7]]}
["ИТОГИ\nучастия учащихся Детской школы искусств №7 в муниципальных конкурсах                                                                                                    за 2017-2018 учебный год\n"]
["Дата","Уровень и название конкурса","Ф.И.О. учащегося","Кол-во учащихся","Номинация, возрастная группа","Ф.И.О. преподавателя","Достижение","Организатор конкурса"]
["ноябрь 2017","Открытый городской фестиваль - конкурс юных исполнителей \"Звёздная осень\"","Имамова Эмилия",1,"Вокальное исполнение","Колтунова Татьяна Николаевна","Диплом лауреата I степени","МБУ \"ИМЦ\" ГДТДиМ №1"]
[null,null,"Ногуманов Игорь",1,"Вокальное исполнение","Колтунова Татьяна Николаевна","Диплом лауреата I степени"]
[null,null,"Несветаева Ольга",1,"Вокальное исполнение","Колтунова Татьяна Николаевна","Диплом лауреата II степени"]
[null,null,"Петухова Милана",1,"Вокальное исполнение","Колтунова Татьяна Николаевна","Диплом лауреата II степени"]
[null,null,"Жданов Салават",2,"Вокальный ансамбль","Колтунова Татьяна Николаевна","Диплом лауреата II степени"]
[null,null,"Шагиева Полина",1,"Вокальное исполнение","Колтунова Татьяна Николаевна","Диплом                       I степени"]
[null,null,"Имамов Самат",1,"Вокальное исполнение","Колтунова Татьяна Николаевна","Диплом                       II степени"]
["2017-11-29","VII Муниципальный конкурс татарской песни \"Туган як моңнары\"","Андерьянова Зиля",1,"Вокальное исполнение","Шайдуллина Гузель Моратовна                   Концертмейстер                  Титова Ирина Николаевна","Диплом лауреата I степени","УОиДМ, МАУ ДО \"ДШИ №7\""]
[null,null,"Мурадымова Алина",1,"Вокальное исполнение","Суходольская Рузалия Салиховна                    концертмейстер                 Латыпова Анастасия Тагирзяновна","Диплом лауреата I степени"]
[null,null,"Юсупова Карина",1,"Вокальное исполнение","Шайдуллина Гузель Моратовна \nКонцертмейстер                  Титова Ирина Николаевна\n","Диплом лауреата I степени"]
[null,null,"Шарипова Алиса",1,"Вокальное исполнение","Гафиятуллин Фидарис Халидуллинович","Диплом лауреата II степени"]
[null,null,"Тайманова Анастасия",1,"Вокальное исполнение","Будневич Тамара Константиновна концертмейстер Гимазиева Елена Александровна","Диплом лауреата III степени"]
[null,null,"Зигангирова Алина",1,"Вокальное исполнение","Знатина Ульяна Юрьевна концертмейстер                    Фролов Владислав Александрович","Диплом лауреата III степени"]
[null,null,"Гатина Иделия",1,"Вокальное исполнение","Храмушина Наталья Николаевна\nКонцертмейстер            Козук Ксения Александровна\n","Диплом лауреата III степени"]
[null,null,"Дементьева Аделина",1,"Вокальное исполнение","Храмушина Наталья Николаевна\nКонцертмейстер            Козук Ксения Александровна\n","Диплом дипломанта"]
[null,null,"Гасимов Азат",1,"Вокальное исполнение","Храмушина Наталья Николаевна\nКонцертмейстер            Козук Ксения Александровна\n","Диплом дипломанта"]
[null,null,"Амитов Амин",1,"Вокальное исполнение","Знатина Ульяна Юрьевна концертмейстер                    Фролов Владислав Александрович","Диплом дипломанта"]
["2017-11-29","XIX фестиваль художественного творчества детей с ограниченными возможностями здоровья \"Пусть всегда будет солнце\"","Рафикова Диляра",1,"Инструментальное исполнение","Садыкова Татьяна Владимировна","Диплом лауреата I степени","Автозаводский Исполком"]
[null,null,"Фортепианный дуэт в составе:                         Потанина Надежда Потанина Дарья",2,"Инструментальное исполнение","Садыкова Татьяна Владимировна","Диплом лауреата II степени"]
[null,null,"Патракова Елизавета",1,"Художественное слово","Садыкова Татьяна Владимировна","Диплом лауреата III степени"]
[null,null,"Саитова Регина",1,"Инструментальное исполнение","Садыкова Татьяна Владимировна","Диплом лауреата III степени"]
["2017-12-09","Муниципальный фестиваль-конкурс танцевальной фортепианной музыки \"Радуга\"","Марданшина Азалия",1,"Фортепиано","Ильюшкина Виктория Витальевна","Диплом                       I степени","ДШИ 13, ИМЦ"]
[null,null,"Грачёв Никита",1,"Фортепиано","Мухаметшина Венера Робесовна","Диплом                       I степени"]
["2017-11-29","Городской фестиваль учащихся по классу фортепиано инструментальных, вокально-хоровых и хореографических отделений \"Встреча у рояля\"","Жигалов Артём",1,"Общее фортепиано","Абрамова Ольга Витальевна","Диплом дипломанта","УК, ДМШ №5"]
[null,null,"Жиркова Полина",1,"Общее фортепиано","Кузьмичева Надежда Владимировна","Диплом дипломанта"]
[null,null,"Ногуманов Игорь",1,"Общее фортепиано","Помазкина Людмила Лукьяновна","Диплом дипломанта"]
[null,null,"Ханипов Раушан",1,"Общее фортепиано","Гайфуллина Алла Александровна","Диплом дипломанта"]
["2017-12-24","Муниципальный этап IV Республиканского фестиваля -конкурса \"Рождественская сказка\"","Младший хор \"Соловушки\" в составе:                               1. Татаренкова Я.\n2. Гиздатуллина С.\n3. Богачева У.                                              4. Белов Д.\n5. Клочихин А.                                               6. Сафина Д.\n7. Гумерова С.                                           8. Юсупова М.\n9. Ибатулина Л.                                      10. Петренко В.\n11. Чумакова А.                                     12. Буглеева В.\n13. Малинина С.                                         14. Карсакова Т.\n15. Брекоткина М.\n16. Пузынович А.\n17. Бахтиярова Р.                                     18. Сафина А.\n19. Миркасимова А.                               20. Цветкова А.\n21. Нотфуллина А.\n22. Малыгина М.\n23. Газизова М.\n24. Яндуганова Е.\n25. Силантьева Л.\n26. Казаева А.                                          27. Гаязова А.\n28. Гаязова М.                                          29. Хайдарова И.\n30. Фролова П.\n31. Иделгареева Е.                                32. Гилязов Э.\n33. Миронов К                                       34. Неровная К.\n",34,"Хоровое пение","Замилова Луйиза Мегдятовна концертмейстер Алиакберова Алия Ирековна","Диплом лауреата I степени","РЦВР, ДШИ 13"]
[null,null,"Шагиева Полина",1,"Вокальное исполнение","Колтунова Татаьяна Николаевна","Диплом лауреата I степени"]
[null,null,"Юсупова Карина",1,"Вокальное исполнение","Шайдуллина Гузель Моратовна концертмейстер Титова Ирина Николаевна","Диплом лауреата I степени"]
[null,null,"Вокальный дуэт в составе:                      Шагиева Полина Малыгина Мария",2,"Вокальное исполнение","Колтунова Татьяна Николаевна","Диплом лауреата III степени"]
[null,null,"Сунцова Ксения",1,"Вокальное исполнение","Храмушина Наталья Николаевна","Диплом                       I степени"]
[null,null,"Казакова Елизавета",1,"Вокальное исполнение","Храмушина Наталья Николаевна","Диплом                       I степени"]
["2017-02-10","Муниципальный этап\nВсероссийской телекоммуникационной олимпиады \nЮНЫХ ЖУРНАЛИСТОВ\n","Мыльникова Ольга",1,"Журналистика","Буркова Любовь Васильевна","Диплом лауреата II степени","РЦВР, Огниво 16"]
["2017-02-02","Муниципальный этап Всероссийского конкурса \"Юность России\"","Гильманова Камиля",1,"Фотография","Николаева Ольга Сергеевна","Диплом                       I степени","РЦВР, МБУ ИМЦ, ДЮЦ 14"]
["февраль - март 2018","I Городской фестиваль театрального искусства                \"За кулисами детства\"","Фёдоров Денис",1,"театр","Зайдарова Наиля Салиховна","Диплом участника","УОиДМ, Школа \"Форте\""]
["19-23.03.2018","Муниципальный этап Республиканского детского фестиваля -конкурса народного творчества                   \"Без бергә\"","Вокальный ансамбль \"Колибри\" в составе:                                         Куркина Елизавета                Имамова Эмилия      Несветаева Ольга  Ахметшина Диана                 Жданов Салават                Ногуманов Игорь                 Шагиева Полина                Малыгина Мария             Черных Данил                    Ризатдинов Тимур Равзетдинов Камиль",11,"Вокальные ансамбли","Колтунова Татьяна Николаевна","Диплом лауреата I степени","МОиН РТ, РЦВР, ГДТДиМ №1"]
[null,null,"Анасмбль народных инструментов в составе:                                        1. Петрова Полина  \n2. Хохрева Яна                   \n3. Толпеева Даша              \n4. Хасанова Алия               \n5. Зиганшина Камилла \n6. Хабибуллин Рамазан \n7. Данилов Арсений          \n8. Забиров Адель               \n9. Хуснуллин Наиль \n10. Бигиева Арина  \n11. Гилязев Карим  \n12. Денизхан Мустафа \n13. Колчерин Костя  \n",13,"Ансамбли","Шигапова Гульнара Масхудовна                      Семёнова Вероника Михайловна","Диплом лауреата I степени","МОиН РТ, РЦВР, ДШИ №7"]
[null,null,"Вокальный ансамбль \"Колибри\" в составе:                                  Куркина Елизавета                                Имамова Эмилия                           Несветаева Ольга Ахметшина Диана",4,"Вокальные ансамбли","Колтунова Татьяна Николаевна","Диплом лауреата II степени","МОиН РТ, РЦВР, ГДТДиМ №1"]
[null,null,"Анасмбль народных инструментов в составе:                                    1. Петрова Полина  \n2. Хохрева Яна                   \n3. Толпеева Даша              \n4. Хасанова Алия               \n5. Зиганшина Камилла \n6. Хабибуллин Рамазан \n7. Данилов Арсений          \n8. Забиров Адель               \n9. Хуснуллин Наиль \n10. Бигиева Арина  \n11. Гилязев Карим  \n12. Денизхан Мустафа \n13. Колчерин Костя  \n",13,"Ансамбли","Шигапова Гульнара Масхудовна                      Семёнова Вероника Михайловна","Диплом лауреата I степени","МОиН РТ, РЦВР, ДШИ №7"]
[null,null,"Яфясова Азалия",1,"Народный вокал","Хоини Рима Илдусовна","Диплом лауреата II степени","МОиН РТ, РЦВР, ДШИ 13"]
[null,null,"Исламгараева Адиля",1,null,null,"Сертификат участника"]
[null,null,"Дуэт в составе:                  Зубова Янина Владимировна Нечитайло Егор",1,"Творческая семья","Колтунова Татьяна Николаевна","Диплом                       II степени","МОиН РТ, РЦВР, ДЮЦ №14"]
[null,null,"Хореографический ансамбль \"Вдохновение\" в составе:                                            1.  Белоногова Мирослава\n2.  Гатина Диля\n3.  Гареева София\n4.  Козлова Анастасия\n5.  Липатова Диана\n6.  Логинова Александра\n7.  Махмудова Алина\n8.  Рыбюк Екатерина\n9.  Ульданова Сабина\n10. Шарафисламова Софья\n",10,"Хореография","Панкова Наталья Владимировна концертмейстер Латыпова Анастасия Тагирзяновна","Диплом                       II степени","МОиН РТ, РЦВР, ДШХИ №17"]
["2018-04-14","Городской фестиваль юношеского творчества \"Музыкальная радуга\"","Мандзюк Вероника",1,"Баян","Луговая Татьяна Геннадьевна","Диплом лауреата I степени","ГАПОУ \"Набережночелнинский педагогический колледж\""]
[null,null,"Грачёв Никита",1,"Фортепиано","Мухаметшина Венера Робесовна","Диплом лауреата I степени"]
[null,null,"Фортепианный ансамбль в составе: Николаева Екатерина, Саламатова Екатерина",2,"Фортепиано","Луговая Татьяна Геннадьевна","Диплом лауреата I степени"]
[null,null,"Николаева Екатерина",1,"Фортепиано","Луговая Татьяна Геннадьевна","Диплом лауреата II степени"]
[null,null,"Богомолова Любовь",1,"Фортепиано","Рассказова Лариса Григорьевна","Диплом лауреата II степени"]
[null,null,"Белоглазова Ангелина",1,"Фортепиано","Луговая Татьяна Геннадьевна","Диплом лауреата III степени"]
[null,null,"Фортепианный дуэт в составе:                         Мифтяхова Ляйля Батяева Елизавета",2,"Фортепиано","Помазкина Людмила Лукьяновна","Диплом лауреата III степени"]
[null,null,"Лапицкий Егор",1,"Баян","Шайхуллина Энже Флуновна","Диплом лауреата III степени"]
["2017-04-24","I Городской конкурс - фестиваль по народному танцу \"Город танцует\"","Хореографический ансамбль \"Вдохновение\" в составе:                             1. Аменова Азалия \n2. Ильина Лиза \n3. Мухаметханова Эльвира  \n4. Нам Алина  \n5. Прокофьева Аня \n6. Зарипова Зухра \n7. Хаматдинова  \n8. Кондратьева Александра",8,"Хореография","Петрова Лидия Ивановна концертмейстер              Алексеева Наиля Азатовна","Диплом участника","Ансамбль танца \"Булгары\""]
[null,null,"Хореографический ансамбль \"Вдохновение\" в составе:                                     1.  Биктимирова Алина\n2.  Кудряшова Арина\n3.  Макарова Лена\n4.  Мошкова Яна\n5.  Прокопьева Злата\n6.  Прошунина Лера \n7.  Прошунина Саша\n8.  Юсупова Ильфира\n",8,"Хореография","Панкова Наталья Владимировна концертмейстер Латыпова Анастасия Тагирзяновна","Диплом участника","Ансамбль танца \"Булгары\"",{"$f":"73+8+4+10+16","v":111}]
[null,null,"Усанова Дарья",1,"Хореография",null,"Диплом участника"]
["2018-05-20","Республиканский конкурс \"Русская песня\"","Кузнецова Анна",1,"Вокал-соло","Макушина Ольга Ярославовна","Диплом лауреата I степени","УК, Русское общество"]
[null,null,"Феофанова Алина",1,"Вокал-соло","Макушина Ольга Ярославовна","Диплом лауреата I степени"]

{"sheet":"ИТОГ","index":5,"n_rows":16,"n_cols":31,"rows_kept":16,"merged":[[0,0,0,30],[1,0,2,0],[1,1,1,3],[1,4,1,6],[1,7,1,10],[1,11,1,14],[1,15,1,18],[1,19,1,22],[1,23,1,26],[1,27,1,30],[2,8,2,9],[2,12,2,13],[2,16,2,17],[2,20,2,21],[2,24,2,25],[2,28,2,29],[3,0,4,0],[3,1,4,1],[3,2,4,2],[3,3,4,3],[3,4,4,4],[3,5,4,5],[3,6,4,6],[3,10,4,10],[3,14,4,14],[3,18,4,18],[3,22,4,22],[3,26,4,26],[3,30,4,30],[4,7,4,9],[4,11,4,13],[4,15,4,17],[4,19,4,21],[4,23,4,25],[4,27,4,29],[5,0,6,0],[5,1,6,1],[5,2,6,2],[5,3,6,3],[5,4,6,4],[5,5,6,5],[5,6,6,6],[5,10,6,10],[5,14,6,14],[5,18,6,18],[5,22,6,22],[5,26,6,26],[5,30,6,30],[6,7,6,9],[6,11,6,13],[6,15,6,17],[6,19,6,21],[6,23,6,25],[6,27,6,29],[7,0,8,0],[7,1,8,1],[7,2,8,2],[7,3,8,3],[7,4,8,4],[7,5,8,5],[7,6,8,6],[7,10,8,10],[7,14,8,14],[7,18,8,18],[7,22,8,22],[7,26,8,26],[7,30,8,30],[8,7,8,9],[8,11,8,13],[8,15,8,17],[8,19,8,21],[8,23,8,25],[8,27,8,29],[9,0,10,0],[9,1,10,1],[9,2,10,2],[9,3,10,3],[9,4,10,4],[9,5,10,5],[9,6,10,6],[9,10,10,10],[9,14,10,14],[9,18,10,18],[9,22,10,22],[9,26,10,26],[9,30,10,30],[10,7,10,9],[10,11,10,13],[10,15,10,17],[10,19,10,21],[10,23,10,25],[10,27,10,29],[11,0,12,0],[11,1,12,1],[11,2,12,2],[11,3,12,3],[11,4,12,4],[11,5,12,5],[11,6,12,6],[11,10,12,10],[11,14,12,14],[11,18,12,18],[11,22,12,22],[11,26,12,26],[11,30,12,30],[12,7,12,9],[12,11,12,13],[12,15,12,17],[12,19,12,21],[12,23,12,25],[12,27,12,29],[13,0,14,0],[13,1,14,1],[13,2,14,2],[13,3,14,3],[13,4,14,4],[13,5,14,5],[13,6,14,6],[13,7,13,9],[13,11,13,13],[13,15,13,17],[13,19,13,21],[13,23,14,25],[13,26,14,26],[13,27,14,29],[13,30,14,30],[14,7,14,14],[14,15,14,22],[15,0,15,6],[15,7,15,14],[15,15,15,22],[15,23,15,30]]}
["СВОДНАЯ ТАБЛИЦА КОНКРСОВ ЗА 2017-2018 УЧЕБНЫЙ ГОД"]
[null,"Всего дипломов",null,null,"Количество учащихся",null,null,"Гран При",{"$nulls":3},"1 место",{"$nulls":3},"2 место",{"$nulls":3},"3 место",{"$nulls":3},"Дипломанты",{"$nulls":3},"Участники"]
[null,"солисты","тв.кол.","В","солисты","тв.кол.","В","солисты","тв.кол.",null,"В","солисты","тв.кол.",null,"В","солисты","тв.кол.",null,"В","солисты","тв.кол.",null,"В","солисты","тв.кол.",null,"В","солисты","тв.кол.",null,"В"]
["Международные",149,64,{"$f":"B4+C4","v":213},147,560,{"$f":"E4+F4","v":707},2,2,22,{"$f":"H4+J4","v":24},54,22,232,{"$f":"L4+N4","v":286},42,24,213,{"$f":"P4+R4","v":255},27,11,72,{"$f":"T4+V4","v":99},24,5,21,{"$f":"X4+Z4","v":45},0,0,0,{"$f":"AD4+AB4","v":0}]
[{"$nulls":7},{"$f":"H4+I4","v":4},{"$nulls":3},{"$f":"L4+M4","v":76},{"$nulls":3},{"$f":"P4+Q4","v":66},{"$nulls":3},{"$f":"T4+U4","v":38},{"$nulls":3},{"$f":"X4+Y4","v":29},{"$nulls":3},{"$f":"AB4+AC4","v":0}]
["Российские",79,11,{"$f":"B6+C6","v":90},79,73,{"$f":"E6+F6","v":152},1,0,0,{"$f":"H6+J6","v":1},16,3,41,{"$f":"L6+N6","v":57},15,1,2,{"$f":"P6+R6","v":17},14,1,3,{"$f":"T6+V6","v":17},25,5,25,{"$f":"X6+Z6","v":50},8,1,2,{"$f":"AD6+AB6","v":10}]
[{"$nulls":7},1,{"$nulls":3},{"$f":"L6+M6","v":19},{"$nulls":3},{"$f":"P6+Q6","v":16},{"$nulls":3},{"$f":"T6+U6","v":15},{"$nulls":3},{"$f":"X6+Y6","v":30},{"$nulls":3},{"$f":"AB6+AC6","v":9}]
["Республиканские",114,67,{"$f":"B8+C8","v":181},114,656,{"$f":"E8+F8","v":770},2,1,13,{"$f":"H8+J8","v":15},25,15,182,{"$f":"L8+N8","v":207},29,10,83,{"$f":"P8+R8","v":112},25,25,225,{"$f":"T8+V8","v":250},22,8,105,{"$f":"X8+Z8","v":127},11,8,48,{"$f":"AD8+AB8","v":59}]
[{"$nulls":7},{"$f":"H8+I8","v":3},{"$nulls":3},{"$f":"L8+M8","v":40},{"$nulls":3},{"$f":"P8+Q8","v":39},{"$nulls":3},{"$f":"T8+U8","v":50},{"$nulls":3},{"$f":"X8+Y8","v":30},{"$nulls":3},{"$f":"AB8+AC8","v":19}]
["Региональные",48,23,{"$f":"B10+C10","v":71},48,139,{"$f":"E10+F10","v":187},0,0,0,{"$f":"H10+J10","v":0},11,1,57,{"$f":"L10+N10","v":68},11,9,45,{"$f":"P10+R10","v":56},12,2,4,{"$f":"T10+V10","v":16},12,4,28,{"$f":"X10+Z10","v":40},2,1,5,{"$f":"AD10+AB10","v":7}]
[{"$nulls":7},0,{"$nulls":3},{"$f":"L10+M10","v":12},{"$nulls":3},{"$f":"P10+Q10","v":20},{"$nulls":3},{"$f":"T10+U10","v":14},{"$nulls":3},{"$f":"X10+Y10","v":16},{"$nulls":3},{"$f":"AB10+AC10","v":3}]
["Муниципальные",44,13,{"$f":"B12+C12","v":57},44,111,{"$f":"E12+F12","v":155},0,0,0,{"$f":"H12+J12","v":0},12,5,73,{"$f":"L12+N12","v":85},7,3,8,{"$f":"P12+R12","v":15},7,2,4,{"$f":"T12+V12","v":11},15,1,10,{"$f":"X12+Z12","v":25},3,2,16,{"$f":"AD12+AB12","v":19}]
[{"$nulls":7},{"$f":"H12+I12","v":0},{"$nulls":3},{"$f":"L12+M12","v":17},{"$nulls":3},{"$f":"P12+Q12","v":10},{"$nulls":3},{"$f":"T12+U12","v":9},{"$nulls":3},{"$f":"X12+Y12","v":16},{"$nulls":3},{"$f":"AB12+AC12","v":5}]
["ВСЕГО:",{"$f":"B4+B6+B8+B10+B12","v":434},{"$f":"C4+C6+C8+C10+C12","v":178},612,{"$f":"SUM(E4:E13)","v":432},{"$f":"SUM(F4:F13)","v":1539},1971,{"$f":"H5+H7+H9+H11+H13","v":8},null,null,{"$f":"SUM(K4:K13)","v":40},{"$f":"L5+L7+L9+L11+L13","v":164},null,null,{"$f":"SUM(O4:O13)","v":703},{"$f":"P5+P7+P9+P11+P13","v":151},null,null,{"$f":"SUM(S4:S13)","v":455},{"$f":"T5+T7+T9+T11+T13","v":126},null,null,{"$f":"SUM(W4:W13)","v":393},{"$f":"X5+X7+X9+X11+X13","v":121},null,null,{"$f":"SUM(AA4:AA13)","v":287},{"$f":"AB5+AB7+AB9+AB11+AB13","v":36},null,null,{"$f":"SUM(AE4:AE13)","v":95}]
[{"$nulls":7},{"$f":"H14+L14+P14+T14","v":449},{"$nulls":7},{"$f":"K14+O14+S14+W14","v":1591}]
[{"$nulls":7},"всего дипломов лауреатов",{"$nulls":7},"всего учащихся лауреатов"]